Workbook

Sheet Version (hidden)
A1: Version Number | B1: Date | C1: State
A2: 1 | B2: 2013-12-16 | C2: Initial Version
A3: 2 | B3: 2013-12-19 | C3: State and Local Data Preloaded

Sheet RefState (hidden)
A1: STATE_NAME | B1: STATE_ABBREVIATION_SRC | C1: REGION_ID_SRC
A2: Alabama | B2: AL | C2: 3
A3: Alaska | B3: AK | C3: 6
A4: American Samoa | B4: AS | C4: 6
A5: Arizona | B5: AZ | C5: 6
A6: Arkansas | B6: AR | C6: 4
A7: California | B7: CA | C7: 6
A8: Colorado | B8: CO | C8: 4
A9: Connecticut | B9: CT | C9: 1
A10: Delaware | B10: DE | C10: 2
A11: Florida | B11: FL | C11: 3
A12: Georgia | B12: GA | C12: 3
A13: Guam | B13: GU | C13: 6
A14: Hawaii | B14: HI | C14: 6
A15: Idaho | B15: ID | C15: 6
A16: Illinois | B16: IL | C16: 5
A17: Indiana | B17: IN | C17: 5
A18: Iowa | B18: IA | C18: 5
A19: Kansas | B19: KS | C19: 5
A20: Kentucky | B20: KY | C20: 3
A21: Louisiana | B21: LA | C21: 4
A22: Maine | B22: ME | C22: 1
A23: Marshall Islands | B23: MH | C23: 6
A24: Maryland | B24: MD | C24: 2
A25: Massachusetts | B25: MA | C25: 1
A26: Michigan | B26: MI | C26: 5
A27: Micronesia | B27: FM | C27: 6
A28: Minnesota | B28: MN | C28: 5
A29: Mississippi | B29: MS | C29: 3
A30: Missouri | B30: MO | C30: 5
A31: Montana | B31: MT | C31: 4
A32: Nebraska | B32: NE | C32: 5
A33: Nevada | B33: NV | C33: 6
A34: New Hampshire | B34: NH | C34: 1
A35: New Jersey | B35: NJ | C35: 1
A36: New Mexico | B36: NM | C36: 4
A37: New York | B37: NY | C37: 1
A38: North Carolina | B38: NC | C38: 3
A39: North Dakota | B39: ND | C39: 4
A40: Northern Marianas Islands | B40: MP | C40: 6
A41: Not Applicable | B41: NA | C41: -1
A42: Ohio | B42: OH | C42: 5
A43: Oklahoma | B43: OK | C43: 4
A44: Oregon | B44: OR | C44: 6
A45: Palau | B45: PW | C45: 6
A46: Pennsylvania | B46: PA | C46: 2
A47: Puerto Rico | B47: PR | C47: 1
A48: Rhode Island | B48: RI | C48: 1
A49: South Carolina | B49: SC | C49: 3
A50: South Dakota | B50: SD | C50: 4
A51: Tennessee | B51: TN | C51: 3
A52: Texas | B52: TX | C52: 4
A53: U.S. Virgin Islands | B53: VI | C53: 1
A54: Unknown | B54: UK | C54: -1
A55: Utah | B55: UT | C55: 4
A56: Vermont | B56: VT | C56: 1
A57: Virginia | B57: VA | C57: 2
A58: Washington | B58: WA | C58: 6
A59: Washington, D.C. | B59: DC | C59: 2
A60: West Virginia | B60: WV | C60: 2
A61: Wisconsin | B61: WI | C61: 5
A62: Wyoming | B62: WY | C62: 4

Sheet Template9090 (hidden)
A4: Report Status: AWAITING GRANTEE CERTIFICATION as of 09/29/2013, 10:53 AM
A5: Performance Items | B5: Program group | C5: Current Quarter | E5: Cumulative
A6: (Time Period to Cumulate Performance Results) | C6: (most recent) | E6: 4-Quarter
E7: Reporting Period
C8: Value | D8: Numerator | E8: Value | F8: Numerator
D9: Denominator | F9: Denominator
A10: Total Participants | B10: Total Adult Participants | C10: CUR_PTCPNT_ALADLT | E10: ROL_PTCPNT_ALADLT
A11: (07/01/12 to 06/30/13) | B11: Total Adults (self-services only) | C11: CUR_PTCPNT_JSTSLF | E11: ROL_PTCPNT_JSTSLF
B12: WIA Adults | C12: CUR_PTCPNT_WIADLT | E12: ROL_PTCPNT_WIADLT
B13: WIA Dislocated Workers | C13: CUR_PTCPNT_DISLOC | E13: ROL_PTCPNT_DISLOC
B14: Nat'l Emergency Grant | C14: CUR_PTCPNT_NATLEG | E14: ROL_PTCPNT_NATLEG
B15: Total Veterans | C15: CUR_PTCPNT_VETRAN | E15: ROL_PTCPNT_VETRAN
B16: Post 9/11 Era Veterans | C16: CUR_PTCPNT_VET911 | E16: ROL_PTCPNT_VET911
B17: Post 9/11 Era Veterans Receiving Intensive Svcs. | C17: CUR_PTCPNT_VETSVC | E17: ROL_PTCPNT_VETSVC
B18: TAP Workshop Veteran | C18: CUR_PTCPNT_VETTAP | E18: ROL_PTCPNT_VETTAP
B19: Received Training Services | C19: CUR_PTCPNT_TRNSVC | E19: ROL_PTCPNT_TRNSVC
B20: WIA Adults | C20: CUR_PTCPNT_TRNADT | E20: ROL_PTCPNT_TRNADT
B21: WIA Dislocated Workers | C21: CUR_PTCPNT_TRNDIS | E21: ROL_PTCPNT_TRNDIS
B22: Nat'l Emergency Grant | C22: CUR_PTCPNT_TRNNEG | E22: ROL_PTCPNT_TRNNEG
B23: Total Youth (14 - 21) Participants | C23: CUR_PTCPNT_TYOUTH | E23: ROL_PTCPNT_TYOUTH
B24: Younger Youth (14 - 18) | C24: CUR_PTCPNT_YNGYUT | E24: ROL_PTCPNT_YNGYUT
B25: Older Youth (19 - 21) | C25: CUR_PTCPNT_OLDYUT | E25: ROL_PTCPNT_OLDYUT
B26: Out-of-School Youth | C26: CUR_PTCPNT_OTSCHL | E26: ROL_PTCPNT_OTSCHL
B27: In-School Youth | C27: CUR_PTCPNT_INSCHL | E27: ROL_PTCPNT_INSCHL
A28: Total Exiters | B28: Total Adult Exiters | C28: CUR_EXITER_ALADLT | E28: ROL_EXITER_ALADLT
A29: (04/1/12 to 03/31/13) | B29: Total Adults (self-services only) | C29: CUR_EXITER_JSTSLF | E29: ROL_EXITER_JSTSLF
B30: WIA Adults | C30: CUR_EXITER_WIADLT | E30: ROL_EXITER_WIADLT
B31: WIA Dislocated Workers | C31: CUR_EXITER_DISLOC | E31: ROL_EXITER_DISLOC
B32: Nat'l Emergency Grant | C32: CUR_EXITER_NATLEG | E32: ROL_EXITER_NATLEG
B33: Total Youth (14 - 21) Exiters | C33: CUR_EXITER_TYOUTH | E33: ROL_EXITER_TYOUTH
B34: Younger Youth (14 - 18) | C34: CUR_EXITER_YNGYUT | E34: ROL_EXITER_YNGYUT
B35: Older Youth (19 - 21) | C35: CUR_EXITER_OLDYUT | E35: ROL_EXITER_OLDYUT
B36: Out-of-School Youth | C36: CUR_EXITER_OTSCHL | E36: ROL_EXITER_OTSCHL
B37: In-School Youth | C37: CUR_EXITER_INSCHL | E37: ROL_EXITER_INSCHL
B38: Received Training Services | C38: CUR_EXITER_TRNSVC | E38: ROL_EXITER_TRNSVC
B39: WIA Adults | C39: CUR_EXITER_TRNADT | E39: ROL_EXITER_TRNADT
B40: WIA Dislocated Workers | C40: CUR_EXITER_TRNDIS | E40: ROL_EXITER_TRNDIS
B41: Nat'l Emergency Grant | C41: CUR_EXITER_TRNNEG | E41: ROL_EXITER_TRNNEG
A42: Performance Items | B42: Program group | C42: Current Quarter | E42: 4-Quarter
C43: Value | D43: Numerator | E43: Cumulative | F43: Numerator
D44: Denominator | F44: Denominator
A45: Placement in Employment or Education | B45: WIA Youth (14 - 21) | C45: 0.74 | D45: CUR_TYOUTH_PLC_NUM | E45: 0.708 | F45: ROL_TYOUTH_PLC_NUM
A46: (10/1/11 to 09/30/12) | D46: CUR_TYOUTH_PLC_DEN | F46: ROL_TYOUTH_PLC_DEN
A47: Attainment at Degree or Certificate | B47: WIA Youth (14 - 21) | C47: 0.78 | D47: CUR_TYOUTH_ADC_NUM | E47: 0.717 | F47: ROL_TYOUTH_ADC_NUM
A48: (10/1/11 to 09/30/12) | D48: CUR_TYOUTH_ADC_DEN | F48: ROL_TYOUTH_ADC_DEN
A49: Literacy or Numeracy Gains | B49: WIA Youth (14 - 21) | C49: 0.087 | D49: CUR_TYOUTH_LIT_NUM | E49: 0.079 | F49: ROL_TYOUTH_LIT_NUM
A50: (07/01/12 to 06/30/13) | D50: CUR_TYOUTH_LIT_DEN | F50: ROL_TYOUTH_LIT_DEN
A51: Youth Diploma or Equivalent rate | B51: WIA Younger Youth (14 - 18) | C51: 0.6 | D51: CUR_YNGYUT_DER_NUM | E51: 0.638 | F51: ROL_YNGYUT_DER_NUM
A52: (04/1/12 to 03/31/13) | D52: CUR_YNGYUT_DER_DEN | F52: ROL_YNGYUT_DER_DEN
A53: Skill Attainment Rate | B53: WIA Younger Youth (14 - 18) | C53: 0.636 | D53: CUR_YNGYUT_SAR_NUM | E53: 0.665 | F53: ROL_YNGYUT_SAR_NUM
A54: (04/1/12 to 03/31/13) | D54: CUR_YNGYUT_SAR_DEN | F54: ROL_YNGYUT_SAR_DEN
A55: Entered Employment Rate | B55: Adults | C55: 0.8 | D55: CUR_WIADLT_EER_NUM | E55: 0.749 | F55: ROL_WIADLT_EER_NUM
A56: (10/1/11 to 09/30/12) | D56: CUR_WIADLT_EER_DEN | F56: ROL_WIADLT_EER_DEN
B57: Dislocated Workers | C57: 0.813 | D57: CUR_DISLOC_EER_NUM | E57: 0.806 | F57: ROL_DISLOC_EER_NUM
D58: CUR_DISLOC_EER_DEN | F58: ROL_DISLOC_EER_DEN
B59: Older Youth (19 - 21) | C59: 0.779 | D59: CUR_OLDYUT_EER_NUM | E59: 0.725 | F59: ROL_OLDYUT_EER_NUM
D60: CUR_OLDYUT_EER_DEN | F60: ROL_OLDYUT_EER_DEN
B61: Veterans | C61: $73.8% | D61: CUR_VETRAN_EER_NUM | E61: 0.688 | F61: ROL_VETRAN_EER_NUM
D62: CUR_VETRAN_EER_DEN | F62: ROL_VETRAN_EER_DEN
B63: Nat'l Emergency Grant | C63: 0.757 | D63: CUR_NATLEG_EER_NUM | E63: 0.832 | F63: ROL_NATLEG_EER_NUM
D64: CUR_NATLEG_EER_DEN | F64: ROL_NATLEG_EER_DEN
A65: Employment and Credential (Adults Dislocated Workers) | B65: Adults | C65: 0.647 | D65: CUR_WIADLT_ECR_NUM | E65: 0.733 | F65: ROL_WIADLT_ECR_NUM
A66: or Credential Rates (Older Youth) | D66: CUR_WIADLT_ECR_DEN | F66: ROL_WIADLT_ECR_DEN
A67: (10/1/11 to 09/30/12) | B67: Dislocated Workers | C67: 0.667 | D67: CUR_DISLOC_ECR_NUM | E67: 0.7 | F67: ROL_DISLOC_ECR_NUM
D68: CUR_DISLOC_ECR_DEN | F68: ROL_DISLOC_ECR_DEN
B69: Older Youth (19 - 21) | C69: 0.452 | D69: CUR_OLDYUT_ECR_NUM | E69: 0.419 | F69: ROL_OLDYUT_ECR_NUM
D70: CUR_OLDYUT_ECR_DEN | F70: ROL_OLDYUT_ECR_DEN
A71: Retention Rate | B71: Adults | C71: 0.873 | D71: CUR_WIADLT_RET_NUM | E71: 0.867 | F71: ROL_WIADLT_RET_NUM
A72: (04/1/11 to 03/31/12) | D72: CUR_WIADLT_RET_DEN | F72: ROL_WIADLT_RET_DEN
B73: Dislocated Workers | C73: 0.932 | D73: CUR_DISLOC_RET_NUM | E73: 0.917 | F73: ROL_DISLOC_RET_NUM
D74: CUR_DISLOC_RET_DEN | F74: ROL_DISLOC_RET_DEN
B75: Veterans | C75: 0.871 | D75: CUR_VETRAN_RET_NUM | E75: 0.85 | F75: ROL_VETRAN_RET_NUM
D76: CUR_VETRAN_RET_DEN | F76: ROL_VETRAN_RET_DEN
B77: Older Youth (19 - 21) | C77: 0.879 | D77: CUR_OLDYUT_RET_NUM | E77: 0.819 | F77: ROL_OLDYUT_RET_NUM
D78: CUR_OLDYUT_RET_DEN | F78: ROL_OLDYUT_RET_DEN
B79: Younger Youth (14 - 18) | C79: 0.634 | D79: CUR_YNGYUT_RET_NUM | E79: 0.669 | F79: ROL_YNGYUT_RET_NUM
D80: CUR_YNGYUT_RET_DEN | F80: ROL_YNGYUT_RET_DEN
B81: Nat'l Emergency Grant | C81: 0.967 | D81: CUR_NATLEG_RET_NUM | E81: 0.954 | F81: ROL_NATLEG_RET_NUM
D82: CUR_NATLEG_RET_DEN | F82: ROL_NATLEG_RET_DEN
A83: Six-Months Average Earnings | B83: Adults | C83: 14469.2 | D83: CUR_WIADLT_AVG_NUM | E83: 14661.5 | F83: ROL_WIADLT_AVG_NUM
A84: (04/1/11 to 03/31/12) | D84: CUR_WIADLT_AVG_DEN | F84: ROL_WIADLT_AVG_DEN
B85: Dislocated Workers | C85: 20103.8 | D85: CUR_DISLOC_AVG_NUM | E85: 18298.3 | F85: ROL_DISLOC_AVG_NUM
D86: CUR_DISLOC_AVG_DEN | F86: ROL_DISLOC_AVG_DEN
B87: Veterans | C87: 16551.1 | D87: CUR_VETRAN_AVG_NUM | E87: 16776.5 | F87: ROL_VETRAN_AVG_NUM
D88: CUR_VETRAN_AVG_DEN | F88: ROL_VETRAN_AVG_DEN
B89: Older Youth (19 - 21) | C89: 3662.8 | D89: CUR_OLDYUT_AVG_NUM | E89: 2747.1 | F89: ROL_OLDYUT_AVG_NUM
D90: CUR_OLDYUT_AVG_DEN | F90: ROL_OLDYUT_AVG_DEN
B91: Nat'l Emergency Grant | C91: 27070.3 | D91: CUR_NATLEG_AVG_NUM | E91: 22677 | F91: ROL_NATLEG_AVG_NUM
D92: CUR_NATLEG_AVG_DEN | F92: ROL_NATLEG_AVG_DEN
A93: Credential Attainment | B93: Adults | C93: 0.131 | D93: CUR_WIADLT_CAR_NUM | E93: 0.154 | F93: ROL_WIADLT_CAR_NUM
A94: (04/1/11 to 03/31/12) | D94: CUR_WIADLT_CAR_DEN | F94: ROL_WIADLT_CAR_DEN
B95: Dislocated Workers | C95: 0.377 | D95: CUR_DISLOC_CAR_NUM | E95: 0.368 | F95: ROL_DISLOC_CAR_NUM
D96: CUR_DISLOC_CAR_DEN | F96: ROL_DISLOC_CAR_DEN
B97: Youth (14-21) | C97: 0.243 | D97: CUR_TYOUTH_CAR_NUM | E97: 0.231 | F97: ROL_TYOUTH_CAR_NUM
D98: CUR_TYOUTH_CAR_DEN | F98: ROL_TYOUTH_CAR_DEN
B99: Nat'l Emergency Grant | C99: 0.422 | D99: CUR_NATLEG_CAR_NUM | E99: 0.471 | F99: ROL_NATLEG_CAR_NUM
D100: CUR_NATLEG_CAR_DEN | F100: ROL_NATLEG_CAR_DEN
A101: Veteran Priority of Service | B101: Measure | C101: Persent Served | D101: Total | E101: Persent Served | F101: Total
A102: (04/1/11 to 03/31/12) | B102: Covered Entrants Who Reached the End of the Entry Period | D102: CUR_REACHD | F102: ROL_REACHD
B103: Covered Entrants Who Received a Service During the Entry Period | C103: 99 | D103: CUR_SERVCD | E103: 99 | F103: ROL_SERVCD
B104: Covered Entrants Who Received a Staff-Assisted Service During the Entry Period | C104: 7 | D104: CUR_STAFSV | E104: 7 | F104: ROL_STAFSV

Sheet Map9090 (hidden)
A1: Report Status: AWAITING GRANTEE CERTIFICATION as of 09/29/2013, 10:53 AM | J1: Report Due Date: | L1: 2006-02-14 | M1: mm/dd/yyyy | R1: OMB No. | S1: 1205-0420
A2: Performance Items | B2: Program group | C2: Current Quarter | E2: Cumulative | J2: Report Quarter End Date: | L2: 2005-12-31 | M2: mm/dd/yyyy | R2: Expires: 12/31/2012
A3: (Time Period to Cumulate Performance Results) | C3: (most recent) | E3: 4-Quarter
E4: Reporting Period
C5: Value | D5: Numerator | E5: Value | F5: Numerator
D6: Denominator | F6: Denominator | J6: Quarterly Report Form - ETA 9090
A7: Total Participants | B7: Total Adult Participants | J7: Performance Items | M7: Program Group | P7: Current Quarter (most recent) | R7: Cumulative 4-Quarter Reporting Period
A8: (07/01/12 to 06/30/13) | B8: Total Adults (self-services only) | P8: Value | Q8: Numerator | R8: Value | S8: Numerator
B9: WIA Adults | Q9: Denominator | S9: Denominator
B10: WIA Dislocated Workers | H10: =TRIM(M10)=TRIM(B7) -> TRUE | J10: Total Participants | M10: Total Adult Participants | P10: =MATCH(Template9090!C10,ByWIB!$1:$1,0) -> 4 | R10: =MATCH(Template9090!E10,ByWIB!$1:$1,0) -> 5
B11: Nat'l Emergency Grant | H11: =TRIM(M11)=TRIM(B8) -> FALSE | M11: Total Adults (self-service only) | P11: =MATCH(Template9090!C11,ByWIB!$1:$1,0) -> 6 | R11: =MATCH(Template9090!E11,ByWIB!$1:$1,0) -> 7
B12: Total Veterans | H12: FALSE | M12: WIA Adults (staff assisted) | P12: =MATCH(Template9090!C12,ByWIB!$1:$1,0) -> 8 | R12: =MATCH(Template9090!E12,ByWIB!$1:$1,0) -> 9
B13: Post 9/11 Era Veterans | H13: TRUE | M13: WIA Dislocated Workers | P13: =MATCH(Template9090!C13,ByWIB!$1:$1,0) -> 10 | R13: =MATCH(Template9090!E13,ByWIB!$1:$1,0) -> 11
B14: Post 9/11 Era Veterans Receiving Intensive Svcs. | H14: TRUE | M14: Nat'l Emergency Grant | P14: =MATCH(Template9090!C14,ByWIB!$1:$1,0) -> 12 | R14: =MATCH(Template9090!E14,ByWIB!$1:$1,0) -> 13
B15: TAP Workshop Veteran | H15: TRUE | M15: Total Veterans | P15: =MATCH(Template9090!C15,ByWIB!$1:$1,0) -> 14 | R15: =MATCH(Template9090!E15,ByWIB!$1:$1,0) -> 15
B16: Received Training Services | H16: TRUE | M16: Post 9/11 Era Veterans | P16: =MATCH(Template9090!C16,ByWIB!$1:$1,0) -> 16 | R16: =MATCH(Template9090!E16,ByWIB!$1:$1,0) -> 17
B17: WIA Adults | H17: TRUE | M17: Post 9/11 Era Veterans Receiving Intensive Svcs. | P17: =MATCH(Template9090!C17,ByWIB!$1:$1,0) -> 18 | R17: =MATCH(Template9090!E17,ByWIB!$1:$1,0) -> 19
B18: WIA Dislocated Workers | H18: TRUE | M18: TAP Workshop Veteran | P18: =MATCH(Template9090!C18,ByWIB!$1:$1,0) -> 20 | R18: =MATCH(Template9090!E18,ByWIB!$1:$1,0) -> 21
B19: Nat'l Emergency Grant | H19: TRUE | M19: Received Training Services | P19: =MATCH(Template9090!C19,ByWIB!$1:$1,0) -> 22 | R19: =MATCH(Template9090!E19,ByWIB!$1:$1,0) -> 23
B20: Total Youth (14 - 21) Participants | H20: TRUE | M20: WIA Adults | P20: =MATCH(Template9090!C20,ByWIB!$1:$1,0) -> 24 | R20: =MATCH(Template9090!E20,ByWIB!$1:$1,0) -> 25
B21: Younger Youth (14 - 18) | H21: TRUE | M21: WIA Dislocated Workers | P21: =MATCH(Template9090!C21,ByWIB!$1:$1,0) -> 26 | R21: =MATCH(Template9090!E21,ByWIB!$1:$1,0) -> 27
B22: Older Youth (19 - 21) | H22: TRUE | M22: Nat'l Emergency Grant | P22: =MATCH(Template9090!C22,ByWIB!$1:$1,0) -> 28 | R22: =MATCH(Template9090!E22,ByWIB!$1:$1,0) -> 29
B23: Out-of-School Youth | H23: TRUE | M23: Total Youth (14 - 21) Participants | P23: =MATCH(Template9090!C23,ByWIB!$1:$1,0) -> 30 | R23: =MATCH(Template9090!E23,ByWIB!$1:$1,0) -> 31
B24: In-School Youth | H24: TRUE | M24: Younger Youth (14 - 18) | P24: =MATCH(Template9090!C24,ByWIB!$1:$1,0) -> 32 | R24: =MATCH(Template9090!E24,ByWIB!$1:$1,0) -> 33
A25: Total Exiters | B25: Total Adult Exiters | H25: TRUE | M25: Older Youth (19 - 21) | P25: =MATCH(Template9090!C25,ByWIB!$1:$1,0) -> 34 | R25: =MATCH(Template9090!E25,ByWIB!$1:$1,0) -> 35
A26: (04/1/12 to 03/31/13) | B26: Total Adults (self-services only) | H26: TRUE | M26: Out-of-School Youth | P26: =MATCH(Template9090!C26,ByWIB!$1:$1,0) -> 36 | R26: =MATCH(Template9090!E26,ByWIB!$1:$1,0) -> 37
B27: WIA Adults | H27: TRUE | M27: In-School Youth | P27: =MATCH(Template9090!C27,ByWIB!$1:$1,0) -> 38 | R27: =MATCH(Template9090!E27,ByWIB!$1:$1,0) -> 39
B28: WIA Dislocated Workers | H28: TRUE | J28: Total Exiters | M28: Total Adult Exiters | P28: =MATCH(Template9090!C28,ByWIB!$1:$1,0) -> 40 | R28: =MATCH(Template9090!E28,ByWIB!$1:$1,0) -> 41
B29: Nat'l Emergency Grant | H29: TRUE | M29: Total Adults (self-services only) | P29: =MATCH(Template9090!C29,ByWIB!$1:$1,0) -> 42 | R29: =MATCH(Template9090!E29,ByWIB!$1:$1,0) -> 43
B30: Total Youth (14 - 21) Exiters | H30: TRUE | M30: WIA Adults | P30: =MATCH(Template9090!C30,ByWIB!$1:$1,0) -> 44 | R30: =MATCH(Template9090!E30,ByWIB!$1:$1,0) -> 45
B31: Younger Youth (14 - 18) | H31: TRUE | M31: WIA Dislocated Workers | P31: =MATCH(Template9090!C31,ByWIB!$1:$1,0) -> 46 | R31: =MATCH(Template9090!E31,ByWIB!$1:$1,0) -> 47
B32: Older Youth (19 - 21) | H32: TRUE | M32: Nat'l Emergency Grant | P32: =MATCH(Template9090!C32,ByWIB!$1:$1,0) -> 48 | R32: =MATCH(Template9090!E32,ByWIB!$1:$1,0) -> 49
B33: Out-of-School Youth | H33: TRUE | M33: Total Youth (14 - 21) Exiters | P33: =MATCH(Template9090!C33,ByWIB!$1:$1,0) -> 50 | R33: =MATCH(Template9090!E33,ByWIB!$1:$1,0) -> 51
B34: In-School Youth | H34: TRUE | M34: Younger Youth (14 - 18) | P34: =MATCH(Template9090!C34,ByWIB!$1:$1,0) -> 52 | R34: =MATCH(Template9090!E34,ByWIB!$1:$1,0) -> 53
B35: Received Training Services | H35: TRUE | M35: Older Youth (19 - 21) | P35: =MATCH(Template9090!C35,ByWIB!$1:$1,0) -> 54 | R35: =MATCH(Template9090!E35,ByWIB!$1:$1,0) -> 55
B36: WIA Adults | H36: TRUE | M36: Out-of-School Youth | P36: =MATCH(Template9090!C36,ByWIB!$1:$1,0) -> 56 | R36: =MATCH(Template9090!E36,ByWIB!$1:$1,0) -> 57
B37: WIA Dislocated Workers | H37: TRUE | M37: In-School Youth | P37: =MATCH(Template9090!C37,ByWIB!$1:$1,0) -> 58 | R37: =MATCH(Template9090!E37,ByWIB!$1:$1,0) -> 59
B38: Nat'l Emergency Grant | H38: TRUE | M38: Received Training Services | P38: =MATCH(Template9090!C38,ByWIB!$1:$1,0) -> 60 | R38: =MATCH(Template9090!E38,ByWIB!$1:$1,0) -> 61
A39: Performance Items | B39: Program group | C39: Current Quarter | E39: Cumulative | H39: TRUE | M39: WIA Adults | P39: =MATCH(Template9090!C39,ByWIB!$1:$1,0) -> 62 | R39: =MATCH(Template9090!E39,ByWIB!$1:$1,0) -> 63
C40: (most recent) | E40: 4-Quarter | H40: TRUE | M40: WIA Dislocated Workers | P40: =MATCH(Template9090!C40,ByWIB!$1:$1,0) -> 64 | R40: =MATCH(Template9090!E40,ByWIB!$1:$1,0) -> 65
E41: Reporting Period | H41: TRUE | M41: Nat'l Emergency Grant | P41: =MATCH(Template9090!C41,ByWIB!$1:$1,0) -> 66 | R41: =MATCH(Template9090!E41,ByWIB!$1:$1,0) -> 67
C42: Value | D42: Numerator | E42: Value | F42: Numerator | J42: Performance Items | M42: Program Group | P42: Current Quarter (most recent) | R42: Cumulative 4-Quarter Reporting Period
D43: Denominator | F43: Denominator | P43: Value | Q43: Numerator | R43: Value | S43: Numerator
A44: Placement in Employment or Education | B44: WIA Youth (14 - 21) | C44: 0.74 | E44: 0.708 | H44: =TRIM(J45) = TRIM(A44) -> FALSE | Q44: Denominator | S44: Denominator
A45: (10/1/11 to 09/30/12) | J45: Placement in Employment or Education | M45: WIA Youth (14 - 21) | Q45: =MATCH(Template9090!D45,ByWIB!$1:$1,0) -> 68 | S45: =MATCH(Template9090!F45,ByWIB!$1:$1,0) -> 69
A46: Attainment at Degree or Certificate | B46: WIA Youth (14 - 21) | C46: 0.78 | E46: 0.717 | Q46: =MATCH(Template9090!D46,ByWIB!$1:$1,0) -> 70 | S46: =MATCH(Template9090!F46,ByWIB!$1:$1,0) -> 71
A47: (10/1/11 to 09/30/12) | J47: Attainment of Degree or Certificate | M47: WIA Youth (14 - 21) | Q47: =MATCH(Template9090!D47,ByWIB!$1:$1,0) -> 72 | S47: =MATCH(Template9090!F47,ByWIB!$1:$1,0) -> 73
A48: Literacy or Numeracy Gains | B48: WIA Youth (14 - 21) | C48: 0.087 | E48: 0.079 | Q48: =MATCH(Template9090!D48,ByWIB!$1:$1,0) -> 74 | S48: =MATCH(Template9090!F48,ByWIB!$1:$1,0) -> 75
A49: (07/01/12 to 06/30/13) | J49: Literacy and Numeracy Gains | M49: WIA Youth (14 - 21) | Q49: =MATCH(Template9090!D49,ByWIB!$1:$1,0) -> 76 | S49: =MATCH(Template9090!F49,ByWIB!$1:$1,0) -> 77
A50: Youth Diploma or Equivalent rate | B50: WIA Younger Youth (14 - 18) | C50: 0.6 | E50: 0.638 | Q50: =MATCH(Template9090!D50,ByWIB!$1:$1,0) -> 78 | S50: =MATCH(Template9090!F50,ByWIB!$1:$1,0) -> 79
A51: (04/1/12 to 03/31/13) | J51: Youth Diploma or Equivalent Rate | M51: WIA Younger Youth (14-18) | Q51: =MATCH(Template9090!D51,ByWIB!$1:$1,0) -> 80 | S51: =MATCH(Template9090!F51,ByWIB!$1:$1,0) -> 81
A52: Skill Attainment Rate | B52: WIA Younger Youth (14 - 18) | C52: 0.636 | E52: 0.665 | Q52: =MATCH(Template9090!D52,ByWIB!$1:$1,0) -> 82 | S52: =MATCH(Template9090!F52,ByWIB!$1:$1,0) -> 83
A53: (04/1/12 to 03/31/13) | J53: Skill Attainment Rate | M53: WIA Younger Youth (14-18) | Q53: =MATCH(Template9090!D53,ByWIB!$1:$1,0) -> 84 | S53: =MATCH(Template9090!F53,ByWIB!$1:$1,0) -> 85
A54: Entered Employment Rate | B54: Adults | C54: 0.8 | E54: 0.749 | Q54: =MATCH(Template9090!D54,ByWIB!$1:$1,0) -> 86 | S54: =MATCH(Template9090!F54,ByWIB!$1:$1,0) -> 87
A55: (10/1/11 to 09/30/12) | J55: Entered Employment Rates | M55: Adults | Q55: =MATCH(Template9090!D55,ByWIB!$1:$1,0) -> 88 | S55: =MATCH(Template9090!F55,ByWIB!$1:$1,0) -> 89
B56: Dislocated Workers | C56: 0.813 | E56: 0.806 | Q56: =MATCH(Template9090!D56,ByWIB!$1:$1,0) -> 90 | S56: =MATCH(Template9090!F56,ByWIB!$1:$1,0) -> 91
M57: Dislocated Workers | Q57: =MATCH(Template9090!D57,ByWIB!$1:$1,0) -> 92 | S57: =MATCH(Template9090!F57,ByWIB!$1:$1,0) -> 93
B58: Older Youth (19 - 21) | C58: 0.779 | E58: 0.725 | Q58: =MATCH(Template9090!D58,ByWIB!$1:$1,0) -> 94 | S58: =MATCH(Template9090!F58,ByWIB!$1:$1,0) -> 95
M59: Older Youth (19-21) | Q59: =MATCH(Template9090!D59,ByWIB!$1:$1,0) -> 100 | S59: =MATCH(Template9090!F59,ByWIB!$1:$1,0) -> 101
B60: Veterans | C60: $73.8% | E60: 0.688 | Q60: =MATCH(Template9090!D60,ByWIB!$1:$1,0) -> 102 | S60: =MATCH(Template9090!F60,ByWIB!$1:$1,0) -> 103
M61: Veterans | Q61: =MATCH(Template9090!D61,ByWIB!$1:$1,0) -> 96 | S61: =MATCH(Template9090!F61,ByWIB!$1:$1,0) -> 97
B62: Nat'l Emergency Grant | C62: 0.757 | E62: 0.832 | Q62: =MATCH(Template9090!D62,ByWIB!$1:$1,0) -> 98 | S62: =MATCH(Template9090!F62,ByWIB!$1:$1,0) -> 99
M63: Nat'l Emergency Grant | Q63: =MATCH(Template9090!D63,ByWIB!$1:$1,0) -> 104 | S63: =MATCH(Template9090!F63,ByWIB!$1:$1,0) -> 105
A64: Employment and Credential (Adults Dislocated Workers) | B64: Adults | C64: 0.647 | E64: 0.733 | Q64: =MATCH(Template9090!D64,ByWIB!$1:$1,0) -> 106 | S64: =MATCH(Template9090!F64,ByWIB!$1:$1,0) -> 107
A65: or Credential Rates (Older Youth) | J65: Employment and Credential Rates (Adults/Dislocated Workers/Older Youth) | M65: Adults | Q65: =MATCH(Template9090!D65,ByWIB!$1:$1,0) -> 108 | S65: =MATCH(Template9090!F65,ByWIB!$1:$1,0) -> 109
A66: (10/1/11 to 09/30/12) | B66: Dislocated Workers | C66: 0.667 | E66: 0.7 | Q66: =MATCH(Template9090!D66,ByWIB!$1:$1,0) -> 110 | S66: =MATCH(Template9090!F66,ByWIB!$1:$1,0) -> 111
M67: Dislocated Workers | Q67: =MATCH(Template9090!D67,ByWIB!$1:$1,0) -> 112 | S67: =MATCH(Template9090!F67,ByWIB!$1:$1,0) -> 113
B68: Older Youth (19 - 21) | C68: 0.452 | E68: 0.419 | Q68: =MATCH(Template9090!D68,ByWIB!$1:$1,0) -> 114 | S68: =MATCH(Template9090!F68,ByWIB!$1:$1,0) -> 115
M69: Older Youth (19-21) | Q69: =MATCH(Template9090!D69,ByWIB!$1:$1,0) -> 116 | S69: =MATCH(Template9090!F69,ByWIB!$1:$1,0) -> 117
A70: Retention Rate | B70: Adults | C70: 0.873 | E70: 0.867 | Q70: =MATCH(Template9090!D70,ByWIB!$1:$1,0) -> 118 | S70: =MATCH(Template9090!F70,ByWIB!$1:$1,0) -> 119
A71: (04/1/11 to 03/31/12) | J71: Retention Rates | M71: Adults | Q71: =MATCH(Template9090!D71,ByWIB!$1:$1,0) -> 120 | S71: =MATCH(Template9090!F71,ByWIB!$1:$1,0) -> 121
B72: Dislocated Workers | C72: 0.932 | E72: 0.917 | Q72: =MATCH(Template9090!D72,ByWIB!$1:$1,0) -> 122 | S72: =MATCH(Template9090!F72,ByWIB!$1:$1,0) -> 123
M73: Dislocated Workers | Q73: =MATCH(Template9090!D73,ByWIB!$1:$1,0) -> 124 | S73: =MATCH(Template9090!F73,ByWIB!$1:$1,0) -> 125
B74: Veterans | C74: 0.871 | E74: 0.85 | Q74: =MATCH(Template9090!D74,ByWIB!$1:$1,0) -> 126 | S74: =MATCH(Template9090!F74,ByWIB!$1:$1,0) -> 127
M75: Veterans | Q75: =MATCH(Template9090!D75,ByWIB!$1:$1,0) -> 128 | S75: =MATCH(Template9090!F75,ByWIB!$1:$1,0) -> 129
B76: Older Youth (19 - 21) | C76: 0.879 | E76: 0.819 | Q76: =MATCH(Template9090!D76,ByWIB!$1:$1,0) -> 130 | S76: =MATCH(Template9090!F76,ByWIB!$1:$1,0) -> 131
M77: Older Youth (19-21) | Q77: =MATCH(Template9090!D77,ByWIB!$1:$1,0) -> 132 | S77: =MATCH(Template9090!F77,ByWIB!$1:$1,0) -> 133
B78: Younger Youth (14 - 18) | C78: 0.634 | E78: 0.669 | Q78: =MATCH(Template9090!D78,ByWIB!$1:$1,0) -> 134 | S78: =MATCH(Template9090!F78,ByWIB!$1:$1,0) -> 135
M79: Younger Youth (14-18) | Q79: =MATCH(Template9090!D79,ByWIB!$1:$1,0) -> 136 | S79: =MATCH(Template9090!F79,ByWIB!$1:$1,0) -> 137
B80: Nat'l Emergency Grant | C80: 0.967 | E80: 0.954 | Q80: =MATCH(Template9090!D80,ByWIB!$1:$1,0) -> 138 | S80: =MATCH(Template9090!F80,ByWIB!$1:$1,0) -> 139
M81: Nat'l Emergency Grant | Q81: =MATCH(Template9090!D81,ByWIB!$1:$1,0) -> 140 | S81: =MATCH(Template9090!F81,ByWIB!$1:$1,0) -> 141
A82: Six-Months Average Earnings | B82: Adults | C82: 14469.2 | E82: 14661.5 | Q82: =MATCH(Template9090!D82,ByWIB!$1:$1,0) -> 142 | S82: =MATCH(Template9090!F82,ByWIB!$1:$1,0) -> 143
A83: (04/1/11 to 03/31/12) | J83: Six-Months Average Earnings | M83: Adults | Q83: =MATCH(Template9090!D83,ByWIB!$1:$1,0) -> 144 | S83: =MATCH(Template9090!F83,ByWIB!$1:$1,0) -> 145
B84: Dislocated Workers | C84: 20103.8 | E84: 18298.3 | Q84: =MATCH(Template9090!D84,ByWIB!$1:$1,0) -> 146 | S84: =MATCH(Template9090!F84,ByWIB!$1:$1,0) -> 147
M85: Dislocated Workers | Q85: =MATCH(Template9090!D85,ByWIB!$1:$1,0) -> 148 | S85: =MATCH(Template9090!F85,ByWIB!$1:$1,0) -> 149
B86: Veterans | C86: 16551.1 | E86: 16776.5 | Q86: =MATCH(Template9090!D86,ByWIB!$1:$1,0) -> 150 | S86: =MATCH(Template9090!F86,ByWIB!$1:$1,0) -> 151
M87: Veterans | Q87: =MATCH(Template9090!D87,ByWIB!$1:$1,0) -> 152 | S87: =MATCH(Template9090!F87,ByWIB!$1:$1,0) -> 153
B88: Older Youth (19 - 21) | C88: 3662.8 | E88: 2747.1 | Q88: =MATCH(Template9090!D88,ByWIB!$1:$1,0) -> 154 | S88: =MATCH(Template9090!F88,ByWIB!$1:$1,0) -> 155
M89: Older Youth (19-21) (Earnings Change) | Q89: =MATCH(Template9090!D89,ByWIB!$1:$1,0) -> 156 | S89: =MATCH(Template9090!F89,ByWIB!$1:$1,0) -> 157
B90: Nat'l Emergency Grant | C90: 27070.3 | E90: 22677 | Q90: =MATCH(Template9090!D90,ByWIB!$1:$1,0) -> 158 | S90: =MATCH(Template9090!F90,ByWIB!$1:$1,0) -> 159
M91: Nat'l Emergency Grant | Q91: =MATCH(Template9090!D91,ByWIB!$1:$1,0) -> 160 | S91: =MATCH(Template9090!F91,ByWIB!$1:$1,0) -> 161
A92: Credential Attainment | B92: Adults | C92: 0.131 | E92: 0.154 | Q92: =MATCH(Template9090!D92,ByWIB!$1:$1,0) -> 162 | S92: =MATCH(Template9090!F92,ByWIB!$1:$1,0) -> 163
A93: (04/1/11 to 03/31/12) | J93: Credential Attainment | M93: Adults | Q93: =MATCH(Template9090!D93,ByWIB!$1:$1,0) -> 164 | S93: =MATCH(Template9090!F93,ByWIB!$1:$1,0) -> 165
B94: Dislocated Workers | C94: 0.377 | E94: 0.368 | Q94: =MATCH(Template9090!D94,ByWIB!$1:$1,0) -> 166 | S94: =MATCH(Template9090!F94,ByWIB!$1:$1,0) -> 167
M95: Dislocated Workers | Q95: =MATCH(Template9090!D95,ByWIB!$1:$1,0) -> 168 | S95: =MATCH(Template9090!F95,ByWIB!$1:$1,0) -> 169
B96: Youth (14-21) | C96: 0.243 | E96: 0.231 | Q96: =MATCH(Template9090!D96,ByWIB!$1:$1,0) -> 170 | S96: =MATCH(Template9090!F96,ByWIB!$1:$1,0) -> 171
M97: Youth (14-21) | Q97: =MATCH(Template9090!D97,ByWIB!$1:$1,0) -> 172 | S97: =MATCH(Template9090!F97,ByWIB!$1:$1,0) -> 173
B98: Nat'l Emergency Grant | C98: 0.422 | E98: 0.471 | Q98: =MATCH(Template9090!D98,ByWIB!$1:$1,0) -> 174 | S98: =MATCH(Template9090!F98,ByWIB!$1:$1,0) -> 175
M99: Nat'l Emergency Grant | Q99: =MATCH(Template9090!D99,ByWIB!$1:$1,0) -> 176 | S99: =MATCH(Template9090!F99,ByWIB!$1:$1,0) -> 177
A100: Veteran Priority of Service | B100: Measure | C100: Persent Served | D100: Total | E100: Persent Served | F100: Total | Q100: =MATCH(Template9090!D100,ByWIB!$1:$1,0) -> 178 | S100: =MATCH(Template9090!F100,ByWIB!$1:$1,0) -> 179
A101: (04/1/11 to 03/31/12) | B101: Covered Entrants Who Reached the End of the Entry Period | J101: Veteran Priority of Service | M101: Measure | P101: Percent Served | Q101: Total | R101: Percent Served | S101: Total
B102: Covered Entrants Who Received a Service During the Entry Period | C102: 99 | E102: 99
B103: Covered Entrants Who Received a Staff-Assisted Service During the Entry Period | C103: 7 | E103: 7 | M103: Covered Entrants Who Reached the End of the Entry Period | Q103: =MATCH(Template9090!D102,ByWIB!$1:$1,0) -> 180 | S103: =MATCH(Template9090!F102,ByWIB!$1:$1,0) -> 181
M105: Covered Entrants Who Received a Service During the Entry Period | Q105: =MATCH(Template9090!D103,ByWIB!$1:$1,0) -> 182 | S105: =MATCH(Template9090!F103,ByWIB!$1:$1,0) -> 183
M107: Covered Entrants Who Received a Staff-Assisted Service During the Entry Period | Q107: =MATCH(Template9090!D104,ByWIB!$1:$1,0) -> 184 | S107: =MATCH(Template9090!F104,ByWIB!$1:$1,0) -> 185
J109: (OMB/PRA statement)

Sheet ByWIB (hidden)
A1: WIB_NAME | B1: STATE_NAME | C1: RPT_QTR_ID | D1: CUR_PTCPNT_ALADLT | E1: ROL_PTCPNT_ALADLT | F1: CUR_PTCPNT_JSTSLF | G1: ROL_PTCPNT_JSTSLF | H1: CUR_PTCPNT_WIADLT | I1: ROL_PTCPNT_WIADLT | J1: CUR_PTCPNT_DISLOC | K1: ROL_PTCPNT_DISLOC | L1: CUR_PTCPNT_NATLEG | M1: ROL_PTCPNT_NATLEG | N1: CUR_PTCPNT_VETRAN | O1: ROL_PTCPNT_VETRAN | P1: CUR_PTCPNT_VET911 | Q1: ROL_PTCPNT_VET911 | R1: CUR_PTCPNT_VETSVC | S1: ROL_PTCPNT_VETSVC | T1: CUR_PTCPNT_VETTAP | U1: ROL_PTCPNT_VETTAP | V1: CUR_PTCPNT_TRNSVC | W1: ROL_PTCPNT_TRNSVC | X1: CUR_PTCPNT_TRNADT | Y1: ROL_PTCPNT_TRNADT | Z1: CUR_PTCPNT_TRNDIS | AA1: ROL_PTCPNT_TRNDIS | AB1: CUR_PTCPNT_TRNNEG | AC1: ROL_PTCPNT_TRNNEG | AD1: CUR_PTCPNT_TYOUTH | AE1: ROL_PTCPNT_TYOUTH | AF1: CUR_PTCPNT_YNGYUT | AG1: ROL_PTCPNT_YNGYUT | AH1: CUR_PTCPNT_OLDYUT | AI1: ROL_PTCPNT_OLDYUT | AJ1: CUR_PTCPNT_OTSCHL | AK1: ROL_PTCPNT_OTSCHL | AL1: CUR_PTCPNT_INSCHL | AM1: ROL_PTCPNT_INSCHL | AN1: CUR_EXITER_ALADLT | AO1: ROL_EXITER_ALADLT | AP1: CUR_EXITER_JSTSLF | AQ1: ROL_EXITER_JSTSLF | AR1: CUR_EXITER_WIADLT | AS1: ROL_EXITER_WIADLT | AT1: CUR_EXITER_DISLOC | AU1: ROL_EXITER_DISLOC | AV1: CUR_EXITER_NATLEG | AW1: ROL_EXITER_NATLEG | AX1: CUR_EXITER_TYOUTH | AY1: ROL_EXITER_TYOUTH | AZ1: CUR_EXITER_YNGYUT | BA1: ROL_EXITER_YNGYUT | BB1: CUR_EXITER_OLDYUT | BC1: ROL_EXITER_OLDYUT | BD1: CUR_EXITER_OTSCHL | BE1: ROL_EXITER_OTSCHL | BF1: CUR_EXITER_INSCHL | BG1: ROL_EXITER_INSCHL | BH1: CUR_EXITER_TRNSVC | BI1: ROL_EXITER_TRNSVC | BJ1: CUR_EXITER_TRNADT | BK1: ROL_EXITER_TRNADT | BL1: CUR_EXITER_TRNDIS | BM1: ROL_EXITER_TRNDIS | BN1: CUR_EXITER_TRNNEG | BO1: ROL_EXITER_TRNNEG | BP1: CUR_TYOUTH_PLC_NUM | BQ1: ROL_TYOUTH_PLC_NUM | BR1: CUR_TYOUTH_PLC_DEN | BS1: ROL_TYOUTH_PLC_DEN | BT1: CUR_TYOUTH_ADC_NUM | BU1: ROL_TYOUTH_ADC_NUM | BV1: CUR_TYOUTH_ADC_DEN | BW1: ROL_TYOUTH_ADC_DEN | BX1: CUR_TYOUTH_LIT_NUM | BY1: ROL_TYOUTH_LIT_NUM | BZ1: CUR_TYOUTH_LIT_DEN | CA1: ROL_TYOUTH_LIT_DEN | CB1: CUR_YNGYUT_DER_NUM | CC1: ROL_YNGYUT_DER_NUM | CD1: CUR_YNGYUT_DER_DEN | CE1: ROL_YNGYUT_DER_DEN | CF1: CUR_YNGYUT_SAR_NUM | CG1: ROL_YNGYUT_SAR_NUM | CH1: CUR_YNGYUT_SAR_DEN | CI1: ROL_YNGYUT_SAR_DEN | CJ1: CUR_WIADLT_EER_NUM | CK1: ROL_WIADLT_EER_NUM | CL1: CUR_WIADLT_EER_DEN | CM1: ROL_WIADLT_EER_DEN | CN1: CUR_DISLOC_EER_NUM | CO1: ROL_DISLOC_EER_NUM | CP1: CUR_DISLOC_EER_DEN | CQ1: ROL_DISLOC_EER_DEN | CR1: CUR_VETRAN_EER_NUM | CS1: ROL_VETRAN_EER_NUM | CT1: CUR_VETRAN_EER_DEN | CU1: ROL_VETRAN_EER_DEN | CV1: CUR_OLDYUT_EER_NUM | CW1: ROL_OLDYUT_EER_NUM | CX1: CUR_OLDYUT_EER_DEN | CY1: ROL_OLDYUT_EER_DEN | CZ1: CUR_NATLEG_EER_NUM | DA1: ROL_NATLEG_EER_NUM | DB1: CUR_NATLEG_EER_DEN | DC1: ROL_NATLEG_EER_DEN | DD1: CUR_WIADLT_ECR_NUM | DE1: ROL_WIADLT_ECR_NUM | DF1: CUR_WIADLT_ECR_DEN | DG1: ROL_WIADLT_ECR_DEN | DH1: CUR_DISLOC_ECR_NUM | DI1: ROL_DISLOC_ECR_NUM | DJ1: CUR_DISLOC_ECR_DEN | DK1: ROL_DISLOC_ECR_DEN | DL1: CUR_OLDYUT_ECR_NUM | DM1: ROL_OLDYUT_ECR_NUM | DN1: CUR_OLDYUT_ECR_DEN | DO1: ROL_OLDYUT_ECR_DEN | DP1: CUR_WIADLT_RET_NUM | DQ1: ROL_WIADLT_RET_NUM | DR1: CUR_WIADLT_RET_DEN | DS1: ROL_WIADLT_RET_DEN | DT1: CUR_DISLOC_RET_NUM | DU1: ROL_DISLOC_RET_NUM | DV1: CUR_DISLOC_RET_DEN | DW1: ROL_DISLOC_RET_DEN | DX1: CUR_VETRAN_RET_NUM | DY1: ROL_VETRAN_RET_NUM | DZ1: CUR_VETRAN_RET_DEN | EA1: ROL_VETRAN_RET_DEN | EB1: CUR_OLDYUT_RET_NUM | EC1: ROL_OLDYUT_RET_NUM | ED1: CUR_OLDYUT_RET_DEN | EE1: ROL_OLDYUT_RET_DEN | EF1: CUR_YNGYUT_RET_NUM | EG1: ROL_YNGYUT_RET_NUM | EH1: CUR_YNGYUT_RET_DEN | EI1: ROL_YNGYUT_RET_DEN | EJ1: CUR_NATLEG_RET_NUM | EK1: ROL_NATLEG_RET_NUM | EL1: CUR_NATLEG_RET_DEN | EM1: ROL_NATLEG_RET_DEN | EN1: CUR_WIADLT_AVG_NUM | EO1: ROL_WIADLT_AVG_NUM | EP1: CUR_WIADLT_AVG_DEN | EQ1: ROL_WIADLT_AVG_DEN | ER1: CUR_DISLOC_AVG_NUM | ES1: ROL_DISLOC_AVG_NUM | ET1: CUR_DISLOC_AVG_DEN | EU1: ROL_DISLOC_AVG_DEN | EV1: CUR_VETRAN_AVG_NUM | EW1: ROL_VETRAN_AVG_NUM | EX1: CUR_VETRAN_AVG_DEN | EY1: ROL_VETRAN_AVG_DEN | EZ1: CUR_OLDYUT_AVG_NUM | FA1: ROL_OLDYUT_AVG_NUM | FB1: CUR_OLDYUT_AVG_DEN | FC1: ROL_OLDYUT_AVG_DEN | FD1: CUR_NATLEG_AVG_NUM | FE1: ROL_NATLEG_AVG_NUM | FF1: CUR_NATLEG_AVG_DEN | FG1: ROL_NATLEG_AVG_DEN | FH1: CUR_WIADLT_CAR_NUM | FI1: ROL_WIADLT_CAR_NUM | FJ1: CUR_WIADLT_CAR_DEN | FK1: ROL_WIADLT_CAR_DEN | FL1: CUR_DISLOC_CAR_NUM | FM1: ROL_DISLOC_CAR_NUM | FN1: CUR_DISLOC_CAR_DEN | FO1: ROL_DISLOC_CAR_DEN | FP1: CUR_TYOUTH_CAR_NUM | FQ1: ROL_TYOUTH_CAR_NUM | FR1: CUR_TYOUTH_CAR_DEN | FS1: ROL_TYOUTH_CAR_DEN | FT1: CUR_NATLEG_CAR_NUM | FU1: ROL_NATLEG_CAR_NUM | FV1: CUR_NATLEG_CAR_DEN | FW1: ROL_NATLEG_CAR_DEN | FX1: CUR_REACHD | FY1: ROL_REACHD | FZ1: CUR_SERVCD | GA1: ROL_SERVCD | GB1: CUR_STAFSV | GC1: ROL_STAFSV | GD1: FILEIMPORTLOGID
A2: 01 - CareerSource Escarosa | B2: FL | C2: 20141231 | D2: 616 | E2: 839 | H2: 511 | I2: 685 | J2: 108 | K2: 160 | L2: 1 | M2: 2 | N2: 68 | O2: 93 | P2: 34 | Q2: 38 | R2: 32 | S2: 36 | V2: 331 | W2: 527 | X2: 269 | Y2: 425 | Z2: 63 | AA2: 105 | AC2: 1 | AD2: 260 | AE2: 343 | AF2: 216 | AG2: 281 | AH2: 44 | AI2: 62 | AJ2: 102 | AK2: 125 | AL2: 158 | AM2: 218 | AN2: 92 | AO2: 282 | AR2: 74 | AS2: 228 | AT2: 18 | AU2: 58 | AW2: 1 | AX2: 41 | AY2: 116 | AZ2: 37 | BA2: 90 | BB2: 4 | BC2: 26 | BD2: 5 | BE2: 42 | BF2: 36 | BG2: 74 | BH2: 90 | BI2: 268 | BJ2: 72 | BK2: 215 | BL2: 18 | BM2: 57 | BO2: 1 | BP2: 14 | BQ2: 122 | BR2: 17 | BS2: 147 | BT2: 17 | BU2: 122 | BV2: 19 | BW2: 151 | BX2: 6 | BY2: 23 | BZ2: 10 | CA2: 51 | CB2: 20 | CC2: 44 | CD2: 31 | CE2: 63 | CF2: 50 | CG2: 268 | CH2: 75 | CI2: 341 | CJ2: 28 | CK2: 80 | CL2: 28 | CM2: 95 | CN2: 16 | CO2: 49 | CP2: 18 | CQ2: 54 | CR2: 4 | CS2: 14 | CT2: 4 | CU2: 17 | CV2: 6 | CW2: 22 | CX2: 7 | CY2: 27 | DD2: 47 | DE2: 131 | DF2: 50 | DG2: 154 | DH2: 14 | DI2: 45 | DJ2: 18 | DK2: 54 | DL2: 5 | DM2: 19 | DN2: 7 | DO2: 33 | DP2: 30 | DQ2: 111 | DR2: 36 | DS2: 122 | DT2: 15 | DU2: 65 | DV2: 16 | DW2: 71 | DX2: 8 | DY2: 18 | DZ2: 10 | EA2: 23 | EB2: 9 | EC2: 18 | ED2: 9 | EE2: 20 | EF2: 54 | EG2: 102 | EH2: 60 | EI2: 127 | EK2: 2 | EM2: 3 | EN2: 391884 | EO2: 1253045 | EP2: 26 | EQ2: 90 | ER2: 193006 | ES2: 734986 | ET2: 14 | EU2: 51 | EV2: 62559 | EW2: 143563 | EX2: 5 | EY2: 11 | EZ2: 48911 | FA2: 85777 | FB2: 8 | FC2: 18 | FE2: 18045 | FG2: 1 | FH2: 47 | FI2: 138 | FJ2: 50 | FK2: 154 | FL2: 16 | FM2: 49 | FN2: 18 | FO2: 54 | FP2: 2 | FQ2: 14 | FR2: 2 | FS2: 14 | FX2: 9 | FY2: 28 | FZ2: 9 | GA2: 28 | GB2: 9 | GC2: 28 | GD2: 11384
A3: 02 - CareerSource Okaloosa Walton | B3: FL | C3: 20141231 | D3: 183 | E3: 265 | H3: 145 | I3: 207 | J3: 44 | K3: 65 | L3: 2 | M3: 2 | N3: 17 | O3: 22 | P3: 4 | Q3: 4 | R3: 2 | S3: 4 | T3: 1 | U3: 1 | V3: 114 | W3: 214 | X3: 93 | Y3: 178 | Z3: 25 | AA3: 43 | AB3: 1 | AC3: 2 | AD3: 76 | AE3: 110 | AF3: 64 | AG3: 90 | AH3: 12 | AI3: 20 | AJ3: 23 | AK3: 33 | AL3: 53 | AM3: 77 | AN3: 40 | AO3: 98 | AR3: 32 | AS3: 76 | AT3: 8 | AU3: 24 | AX3: 17 | AY3: 44 | AZ3: 13 | BA3: 36 | BB3: 4 | BC3: 8 | BD3: 4 | BE3: 14 | BF3: 13 | BG3: 30 | BH3: 38 | BI3: 94 | BJ3: 31 | BK3: 74 | BL3: 7 | BM3: 22 | BP3: 8 | BQ3: 43 | BR3: 8 | BS3: 52 | BT3: 8 | BU3: 41 | BV3: 9 | BW3: 51 | BX3: 0 | BY3: 2 | BZ3: 1 | CA3: 15 | CB3: 8 | CC3: 26 | CD3: 12 | CE3: 33 | CF3: 7 | CG3: 51 | CH3: 16 | CI3: 67 | CJ3: 7 | CK3: 38 | CL3: 7 | CM3: 40 | CN3: 7 | CO3: 33 | CP3: 7 | CQ3: 33 | CR3: 2 | CS3: 16 | CT3: 2 | CU3: 16 | CV3: 1 | CW3: 2 | CX3: 1 | CY3: 5 | DA3: 2 | DC3: 2 | DD3: 7 | DE3: 99 | DF3: 8 | DG3: 108 | DH3: 7 | DI3: 27 | DJ3: 7 | DK3: 33 | DL3: 1 | DM3: 2 | DN3: 2 | DO3: 7 | DP3: 20 | DQ3: 115 | DR3: 22 | DS3: 119 | DT3: 13 | DU3: 37 | DV3: 15 | DW3: 41 | DX3: 7 | DY3: 23 | DZ3: 8 | EA3: 24 | EC3: 7 | EE3: 7 | EF3: 12 | EG3: 43 | EH3: 14 | EI3: 48 | EJ3: 1 | EK3: 5 | EL3: 1 | EM3: 6 | EN3: 258279 | EO3: 1752658 | EP3: 15 | EQ3: 95 | ER3: 121864 | ES3: 386013 | ET3: 10 | EU3: 28 | EV3: 90242 | EW3: 309491 | EX3: 6 | EY3: 18 | FA3: 38982 | FC3: 4 | FD3: 11425 | FE3: 57481 | FF3: 1 | FG3: 3 | FH3: 7 | FI3: 100 | FJ3: 8 | FK3: 108 | FL3: 7 | FM3: 27 | FN3: 7 | FO3: 33 | FP3: 6 | FQ3: 18 | FR3: 7 | FS3: 20 | FU3: 1 | FW3: 2 | FX3: 1 | FY3: 4 | FZ3: 1 | GA3: 4 | GB3: 1 | GC3: 4 | GD3: 11384
A4: 03 - CareerSource Chipola | B4: FL | C4: 20141231 | D4: 87 | E4: 126 | H4: 72 | I4: 98 | J4: 15 | K4: 28 | N4: 6 | O4: 9 | P4: 4 | Q4: 6 | R4: 3 | S4: 3 | V4: 50 | W4: 87 | X4: 41 | Y4: 68 | Z4: 9 | AA4: 19 | AD4: 71 | AE4: 99 | AF4: 31 | AG4: 46 | AH4: 40 | AI4: 53 | AJ4: 69 | AK4: 94 | AL4: 2 | AM4: 5 | AN4: 13 | AO4: 47 | AR4: 7 | AS4: 30 | AT4: 6 | AU4: 17 | AX4: 8 | AY4: 34 | AZ4: 5 | BA4: 18 | BB4: 3 | BC4: 16 | BD4: 7 | BE4: 31 | BF4: 1 | BG4: 3 | BH4: 12 | BI4: 44 | BJ4: 7 | BK4: 29 | BL4: 5 | BM4: 15 | BP4: 4 | BQ4: 20 | BR4: 5 | BS4: 26 | BT4: 6 | BU4: 26 | BV4: 6 | BW4: 31 | BX4: 4 | BY4: 13 | BZ4: 6 | CA4: 23 | CB4: 4 | CC4: 11 | CD4: 4 | CE4: 16 | CF4: 1 | CG4: 18 | CH4: 3 | CI4: 21 | CJ4: 7 | CK4: 24 | CL4: 8 | CM4: 27 | CN4: 2 | CO4: 11 | CP4: 2 | CQ4: 11 | CR4: 2 | CS4: 3 | CT4: 2 | CU4: 3 | CV4: 3 | CW4: 12 | CX4: 3 | CY4: 12 | DD4: 9 | DE4: 33 | DF4: 11 | DG4: 39 | DH4: 2 | DI4: 8 | DJ4: 2 | DK4: 10 | DL4: 4 | DM4: 13 | DN4: 5 | DO4: 18 | DP4: 10 | DQ4: 40 | DR4: 12 | DS4: 46 | DT4: 3 | DU4: 10 | DV4: 3 | DW4: 10 | DY4: 1 | EA4: 1 | EB4: 6 | EC4: 13 | ED4: 6 | EE4: 14 | EF4: 3 | EG4: 9 | EH4: 4 | EI4: 17 | EN4: 146941 | EO4: 481677 | EP4: 9 | EQ4: 37 | ER4: 15624 | ES4: 62209 | ET4: 1 | EU4: 6 | EW4: 14525 | EY4: 1 | EZ4: 32458 | FA4: 88985 | FB4: 4 | FC4: 12 | FH4: 9 | FI4: 34 | FJ4: 11 | FK4: 39 | FL4: 2 | FM4: 8 | FN4: 2 | FO4: 10 | FP4: 4 | FQ4: 13 | FR4: 4 | FS4: 16 | FX4: 1 | FY4: 4 | FZ4: 1 | GA4: 4 | GB4: 1 | GC4: 4 | GD4: 11384
A5: 04 - CareerSource Gulf Coast | B5: FL | C5: 20141231 | D5: 347 | E5: 598 | H5: 292 | I5: 501 | J5: 65 | K5: 116 | L5: 31 | M5: 73 | N5: 34 | O5: 61 | P5: 23 | Q5: 40 | R5: 12 | S5: 17 | T5: 7 | U5: 11 | V5: 210 | W5: 347 | X5: 173 | Y5: 272 | Z5: 42 | AA5: 90 | AB5: 17 | AC5: 60 | AD5: 204 | AE5: 235 | AF5: 194 | AG5: 221 | AH5: 10 | AI5: 14 | AJ5: 7 | AK5: 9 | AL5: 197 | AM5: 226 | AN5: 79 | AO5: 336 | AR5: 72 | AS5: 276 | AT5: 8 | AU5: 70 | AV5: 4 | AW5: 55 | AX5: 7 | AY5: 53 | AZ5: 6 | BA5: 49 | BB5: 1 | BC5: 4 | BE5: 2 | BF5: 7 | BG5: 51 | BH5: 34 | BI5: 181 | BJ5: 29 | BK5: 130 | BL5: 6 | BM5: 61 | BN5: 4 | BO5: 54 | BP5: 17 | BQ5: 53 | BR5: 19 | BS5: 62 | BT5: 19 | BU5: 52 | BV5: 21 | BW5: 65 | BX5: 0 | BY5: 1 | BZ5: 0 | CA5: 1 | CB5: 4 | CC5: 43 | CD5: 4 | CE5: 43 | CF5: 36 | CG5: 165 | CH5: 36 | CI5: 165 | CJ5: 61 | CK5: 272 | CL5: 63 | CM5: 289 | CN5: 24 | CO5: 92 | CP5: 26 | CQ5: 100 | CR5: 11 | CS5: 45 | CT5: 11 | CU5: 46 | CW5: 1 | CY5: 1 | CZ5: 24 | DA5: 80 | DB5: 26 | DC5: 88 | DD5: 36 | DE5: 123 | DF5: 38 | DG5: 140 | DH5: 23 | DI5: 78 | DJ5: 25 | DK5: 88 | DM5: 1 | DN5: 2 | DO5: 3 | DP5: 92 | DQ5: 264 | DR5: 99 | DS5: 286 | DT5: 22 | DU5: 75 | DV5: 25 | DW5: 84 | DX5: 12 | DY5: 34 | DZ5: 14 | EA5: 38 | EB5: 1 | EC5: 1 | ED5: 1 | EE5: 1 | EF5: 9 | EG5: 34 | EH5: 9 | EI5: 47 | EJ5: 19 | EK5: 53 | EL5: 21 | EM5: 60 | EN5: 1579480 | EO5: 4155549 | EP5: 86 | EQ5: 228 | ER5: 348068 | ES5: 1129345 | ET5: 20 | EU5: 65 | EV5: 256119 | EW5: 612969 | EX5: 12 | EY5: 29 | EZ5: 9673 | FA5: 9673 | FB5: 1 | FC5: 1 | FD5: 315993 | FE5: 859264 | FF5: 18 | FG5: 50 | FH5: 37 | FI5: 129 | FJ5: 38 | FK5: 140 | FL5: 25 | FM5: 83 | FN5: 25 | FO5: 88 | FP5: 1 | FQ5: 3 | FR5: 3 | FS5: 5 | FT5: 26 | FU5: 79 | FV5: 26 | FW5: 86 | FX5: 18 | FY5: 39 | FZ5: 18 | GA5: 39 | GB5: 18 | GC5: 39 | GD5: 11384
A6: 05 - CareerSource Capital Region | B6: FL | C6: 20141231 | D6: 702 | E6: 1088 | H6: 440 | I6: 666 | J6: 270 | K6: 439 | N6: 27 | O6: 50 | P6: 8 | Q6: 14 | R6: 5 | S6: 10 | V6: 232 | W6: 452 | X6: 208 | Y6: 385 | Z6: 26 | AA6: 72 | AD6: 563 | AE6: 730 | AF6: 293 | AG6: 367 | AH6: 270 | AI6: 363 | AJ6: 336 | AK6: 450 | AL6: 227 | AM6: 280 | AN6: 164 | AO6: 465 | AR6: 93 | AS6: 273 | AT6: 71 | AU6: 204 | AX6: 70 | AY6: 206 | AZ6: 31 | BA6: 89 | BB6: 39 | BC6: 117 | BD6: 48 | BE6: 136 | BF6: 22 | BG6: 70 | BH6: 81 | BI6: 227 | BJ6: 69 | BK6: 190 | BL6: 12 | BM6: 43 | BP6: 10 | BQ6: 34 | BR6: 17 | BS6: 54 | BT6: 14 | BU6: 53 | BV6: 16 | BW6: 61 | BX6: 16 | BY6: 49 | BZ6: 39 | CA6: 145 | CB6: 18 | CC6: 37 | CD6: 23 | CE6: 62 | CF6: 23 | CG6: 112 | CH6: 54 | CI6: 273 | CJ6: 29 | CK6: 91 | CL6: 30 | CM6: 96 | CN6: 20 | CO6: 81 | CP6: 23 | CQ6: 93 | CR6: 1 | CS6: 7 | CT6: 1 | CU6: 7 | CV6: 3 | CW6: 18 | CX6: 7 | CY6: 30 | DD6: 35 | DE6: 104 | DF6: 37 | DG6: 110 | DH6: 6 | DI6: 25 | DJ6: 7 | DK6: 29 | DL6: 3 | DM6: 18 | DN6: 10 | DO6: 44 | DP6: 26 | DQ6: 122 | DR6: 27 | DS6: 127 | DT6: 15 | DU6: 75 | DV6: 15 | DW6: 80 | DX6: 2 | DY6: 12 | DZ6: 2 | EA6: 13 | EB6: 6 | EC6: 16 | ED6: 6 | EE6: 17 | EF6: 4 | EG6: 7 | EH6: 5 | EI6: 13 | EK6: 1 | EM6: 1 | EN6: 438629 | EO6: 2051017 | EP6: 24 | EQ6: 111 | ER6: 188824 | ES6: 1114852 | ET6: 13 | EU6: 68 | EV6: 25085 | EW6: 202169 | EX6: 2 | EY6: 12 | EZ6: 35239 | FA6: 105524 | FB6: 5 | FC6: 14 | FE6: 16966 | FG6: 1 | FH6: 36 | FI6: 105 | FJ6: 37 | FK6: 110 | FL6: 7 | FM6: 26 | FN6: 7 | FO6: 29 | FP6: 4 | FQ6: 19 | FR6: 4 | FS6: 20 | FX6: 1 | FY6: 20 | FZ6: 1 | GA6: 20 | GB6: 1 | GC6: 20 | GD6: 11384
A7: 06 - CareerSource North Florida | B7: FL | C7: 20141231 | D7: 140 | E7: 216 | H7: 118 | I7: 188 | J7: 24 | K7: 30 | N7: 14 | O7: 18 | P7: 7 | Q7: 9 | R7: 1 | S7: 7 | V7: 95 | W7: 185 | X7: 84 | Y7: 166 | Z7: 11 | AA7: 21 | AD7: 92 | AE7: 126 | AF7: 57 | AG7: 82 | AH7: 35 | AI7: 44 | AJ7: 52 | AK7: 65 | AL7: 40 | AM7: 61 | AN7: 33 | AO7: 97 | AR7: 33 | AS7: 89 | AU7: 9 | AX7: 15 | AY7: 37 | AZ7: 14 | BA7: 27 | BB7: 1 | BC7: 10 | BD7: 4 | BE7: 14 | BF7: 11 | BG7: 23 | BH7: 31 | BI7: 90 | BJ7: 31 | BK7: 84 | BM7: 7 | BP7: 6 | BQ7: 14 | BR7: 9 | BS7: 23 | BT7: 6 | BU7: 12 | BV7: 8 | BW7: 23 | BX7: 0 | BY7: 7 | BZ7: 4 | CA7: 27 | CB7: 10 | CC7: 15 | CD7: 13 | CE7: 23 | CF7: 2 | CG7: 12 | CH7: 4 | CI7: 39 | CJ7: 6 | CK7: 12 | CL7: 6 | CM7: 15 | CN7: 3 | CO7: 7 | CP7: 3 | CQ7: 8 | CW7: 2 | CX7: 2 | CY7: 8 | DD7: 9 | DE7: 103 | DF7: 12 | DG7: 110 | DH7: 1 | DI7: 3 | DJ7: 2 | DK7: 6 | DM7: 1 | DN7: 2 | DO7: 8 | DP7: 14 | DQ7: 105 | DR7: 14 | DS7: 108 | DU7: 1 | DW7: 2 | DY7: 2 | EA7: 2 | EB7: 1 | EC7: 1 | ED7: 1 | EE7: 1 | EF7: 5 | EG7: 10 | EH7: 6 | EI7: 11 | EN7: 203302 | EO7: 1922762 | EP7: 14 | EQ7: 104 | EW7: 45090 | EY7: 2 | EZ7: 10198 | FA7: 10198 | FB7: 1 | FC7: 1 | FH7: 9 | FI7: 103 | FJ7: 12 | FK7: 110 | FL7: 1 | FM7: 3 | FN7: 2 | FO7: 6 | FP7: 2 | FQ7: 6 | FR7: 2 | FS7: 7 | FY7: 8 | GA7: 8 | GC7: 8 | GD7: 11384
A8: 07 - CareerSource Florida Crown | B8: FL | C8: 20141231 | D8: 90 | E8: 136 | H8: 79 | I8: 120 | J8: 11 | K8: 17 | N8: 8 | O8: 14 | P8: 5 | Q8: 8 | R8: 5 | S8: 8 | V8: 66 | W8: 110 | X8: 61 | Y8: 99 | Z8: 5 | AA8: 11 | AD8: 143 | AE8: 176 | AF8: 119 | AG8: 148 | AH8: 24 | AI8: 28 | AJ8: 77 | AK8: 94 | AL8: 66 | AM8: 82 | AN8: 16 | AO8: 124 | AR8: 12 | AS8: 102 | AT8: 4 | AU8: 23 | AX8: 20 | AY8: 90 | AZ8: 19 | BA8: 60 | BB8: 1 | BC8: 30 | BD8: 7 | BE8: 61 | BF8: 13 | BG8: 29 | BH8: 14 | BI8: 115 | BJ8: 11 | BK8: 95 | BL8: 3 | BM8: 21 | BP8: 4 | BQ8: 47 | BR8: 7 | BS8: 95 | BT8: 7 | BU8: 48 | BV8: 8 | BW8: 100 | BX8: 2 | BY8: 11 | BZ8: 2 | CA8: 16 | CB8: 18 | CC8: 31 | CD8: 18 | CE8: 56 | CF8: 31 | CG8: 166 | CH8: 31 | CI8: 167 | CJ8: 4 | CK8: 19 | CL8: 4 | CM8: 30 | CN8: 1 | CO8: 11 | CP8: 1 | CQ8: 20 | CS8: 2 | CU8: 3 | CV8: 2 | CW8: 11 | CX8: 2 | CY8: 29 | DD8: 16 | DE8: 54 | DF8: 17 | DG8: 84 | DH8: 1 | DI8: 8 | DJ8: 1 | DK8: 18 | DL8: 2 | DM8: 5 | DN8: 2 | DO8: 33 | DP8: 8 | DQ8: 33 | DR8: 8 | DS8: 35 | DT8: 1 | DU8: 15 | DV8: 1 | DW8: 15 | DY8: 1 | EA8: 1 | EC8: 6 | EE8: 6 | EF8: 11 | EG8: 30 | EH8: 18 | EI8: 49 | EN8: 142590 | EO8: 554346 | EP8: 8 | EQ8: 29 | ER8: 31118 | ES8: 225992 | ET8: 1 | EU8: 12 | FA8: 27629 | FC8: 5 | FH8: 16 | FI8: 60 | FJ8: 17 | FK8: 84 | FL8: 1 | FM8: 12 | FN8: 1 | FO8: 18 | FQ8: 2 | FS8: 4 | FX8: 5 | FY8: 8 | FZ8: 5 | GA8: 8 | GB8: 5 | GC8: 8 | GD8: 11384
A9: 08 - CareerSource Northeast Florida | B9: FL | C9: 20141231 | D9: 1952 | E9: 3462 | H9: 1714 | I9: 2948 | J9: 254 | K9: 547 | L9: 5 | M9: 16 | N9: 129 | O9: 279 | P9: 53 | Q9: 96 | R9: 50 | S9: 92 | T9: 2 | U9: 7 | V9: 1408 | W9: 2624 | X9: 1266 | Y9: 2333 | Z9: 147 | AA9: 302 | AB9: 1 | AC9: 7 | AD9: 600 | AE9: 1099 | AF9: 477 | AG9: 881 | AH9: 123 | AI9: 218 | AJ9: 183 | AK9: 334 | AL9: 417 | AM9: 765 | AN9: 273 | AO9: 1802 | AR9: 210 | AS9: 1475 | AT9: 64 | AU9: 350 | AW9: 11 | AX9: 97 | AY9: 540 | AZ9: 78 | BA9: 429 | BB9: 19 | BC9: 111 | BD9: 29 | BE9: 174 | BF9: 68 | BG9: 366 | BH9: 273 | BI9: 1796 | BJ9: 210 | BK9: 1471 | BL9: 64 | BM9: 348 | BO9: 11 | BP9: 20 | BQ9: 162 | BR9: 32 | BS9: 329 | BT9: 31 | BU9: 276 | BV9: 46 | BW9: 378 | BX9: 27 | BY9: 94 | BZ9: 49 | CA9: 164 | CB9: 22 | CC9: 218 | CD9: 26 | CE9: 271 | CF9: 82 | CG9: 673 | CH9: 115 | CI9: 748 | CJ9: 66 | CK9: 239 | CL9: 83 | CM9: 293 | CN9: 87 | CO9: 263 | CP9: 106 | CQ9: 320 | CR9: 21 | CS9: 60 | CT9: 24 | CU9: 77 | CV9: 4 | CW9: 35 | CX9: 6 | CY9: 61 | CZ9: 1 | DA9: 3 | DB9: 1 | DC9: 6 | DD9: 250 | DE9: 1079 | DF9: 312 | DG9: 1239 | DH9: 74 | DI9: 235 | DJ9: 112 | DK9: 333 | DL9: 11 | DM9: 41 | DN9: 15 | DO9: 90 | DP9: 237 | DQ9: 994 | DR9: 254 | DS9: 1057 | DT9: 53 | DU9: 256 | DV9: 63 | DW9: 278 | DX9: 24 | DY9: 101 | DZ9: 26 | EA9: 105 | EB9: 8 | EC9: 51 | ED9: 8 | EE9: 59 | EF9: 36 | EG9: 120 | EH9: 50 | EI9: 196 | EK9: 7 | EM9: 7 | EN9: 4521636 | EO9: 20078791 | EP9: 234 | EQ9: 967 | ER9: 894799 | ES9: 3914745 | ET9: 52 | EU9: 233 | EV9: 368165 | EW9: 1728424 | EX9: 23 | EY9: 94 | EZ9: 41845 | FA9: 235953 | FB9: 8 | FC9: 55 | FE9: 55552 | FG9: 5 | FH9: 266 | FI9: 1149 | FJ9: 312 | FK9: 1239 | FL9: 89 | FM9: 276 | FN9: 112 | FO9: 333 | FP9: 15 | FQ9: 114 | FR9: 18 | FS9: 128 | FT9: 2 | FU9: 6 | FV9: 2 | FW9: 7 | FX9: 27 | FY9: 110 | FZ9: 27 | GA9: 110 | GB9: 27 | GC9: 110 | GD9: 11384
A10: 09 - CareerSource North Central | B10: FL | C10: 20141231 | D10: 538 | E10: 717 | H10: 428 | I10: 581 | J10: 120 | K10: 150 | L10: 14 | M10: 14 | N10: 65 | O10: 78 | P10: 10 | Q10: 13 | R10: 6 | S10: 10 | V10: 140 | W10: 293 | X10: 113 | Y10: 247 | Z10: 29 | AA10: 48 | AB10: 14 | AC10: 14 | AD10: 289 | AE10: 384 | AF10: 215 | AG10: 285 | AH10: 74 | AI10: 99 | AJ10: 116 | AK10: 156 | AL10: 173 | AM10: 228 | AN10: 74 | AO10: 222 | AR10: 67 | AS10: 189 | AT10: 8 | AU10: 37 | AX10: 38 | AY10: 120 | AZ10: 30 | BA10: 90 | BB10: 8 | BC10: 30 | BD10: 14 | BE10: 50 | BF10: 24 | BG10: 70 | BH10: 65 | BI10: 183 | BJ10: 59 | BK10: 152 | BL10: 6 | BM10: 34 | BP10: 11 | BQ10: 62 | BR10: 16 | BS10: 92 | BT10: 10 | BU10: 58 | BV10: 16 | BW10: 86 | BX10: 8 | BY10: 27 | BZ10: 14 | CA10: 63 | CB10: 20 | CC10: 45 | CD10: 23 | CE10: 60 | CF10: 21 | CG10: 84 | CH10: 53 | CI10: 214 | CJ10: 24 | CK10: 72 | CL10: 24 | CM10: 85 | CN10: 11 | CO10: 31 | CP10: 12 | CQ10: 39 | CR10: 3 | CS10: 6 | CT10: 3 | CU10: 7 | CV10: 2 | CW10: 16 | CX10: 4 | CY10: 20 | DD10: 20 | DE10: 78 | DF10: 31 | DG10: 111 | DH10: 8 | DI10: 24 | DJ10: 11 | DK10: 32 | DL10: 1 | DM10: 6 | DN10: 4 | DO10: 21 | DP10: 37 | DQ10: 73 | DR10: 40 | DS10: 82 | DT10: 6 | DU10: 18 | DV10: 6 | DW10: 19 | DX10: 4 | DY10: 10 | DZ10: 4 | EA10: 10 | EB10: 7 | EC10: 14 | ED10: 9 | EE10: 22 | EF10: 10 | EG10: 34 | EH10: 14 | EI10: 64 | EN10: 611158 | EO10: 1165137 | EP10: 33 | EQ10: 63 | ER10: 110127 | ES10: 336085 | ET10: 6 | EU10: 17 | EV10: 37427 | EW10: 164074 | EX10: 3 | EY10: 9 | EZ10: 34340 | FA10: 80319 | FB10: 9 | FC10: 22 | FH10: 20 | FI10: 87 | FJ10: 31 | FK10: 111 | FL10: 9 | FM10: 29 | FN10: 11 | FO10: 32 | FP10: 6 | FQ10: 34 | FR10: 7 | FS10: 35 | FY10: 14 | GA10: 14 | GC10: 14 | GD10: 11384
A11: 10 - CareerSource Citrus Levy Marion | B11: FL | C11: 20141231 | D11: 298 | E11: 497 | H11: 243 | I11: 387 | J11: 57 | K11: 116 | L11: 4 | M11: 9 | N11: 24 | O11: 37 | P11: 7 | Q11: 9 | R11: 2 | S11: 7 | V11: 224 | W11: 355 | X11: 193 | Y11: 306 | Z11: 31 | AA11: 50 | AB11: 2 | AC11: 2 | AD11: 296 | AE11: 457 | AF11: 119 | AG11: 181 | AH11: 177 | AI11: 276 | AJ11: 241 | AK11: 363 | AL11: 55 | AM11: 94 | AN11: 53 | AO11: 329 | AR11: 45 | AS11: 253 | AT11: 8 | AU11: 81 | AW11: 7 | AX11: 53 | AY11: 214 | AZ11: 22 | BA11: 77 | BB11: 31 | BC11: 137 | BD11: 41 | BE11: 170 | BF11: 12 | BG11: 44 | BH11: 47 | BI11: 281 | BJ11: 40 | BK11: 221 | BL11: 7 | BM11: 63 | BO11: 6 | BP11: 27 | BQ11: 152 | BR11: 39 | BS11: 215 | BT11: 38 | BU11: 185 | BV11: 43 | BW11: 213 | BX11: 17 | BY11: 107 | BZ11: 34 | CA11: 179 | CB11: 6 | CC11: 28 | CD11: 9 | CE11: 42 | CF11: 28 | CG11: 158 | CH11: 39 | CI11: 203 | CJ11: 16 | CK11: 163 | CL11: 23 | CM11: 198 | CN11: 24 | CO11: 96 | CP11: 28 | CQ11: 132 | CR11: 3 | CS11: 18 | CT11: 5 | CU11: 34 | CV11: 17 | CW11: 90 | CX11: 25 | CY11: 117 | CZ11: 1 | DA11: 6 | DB11: 2 | DC11: 10 | DD11: 25 | DE11: 531 | DF11: 37 | DG11: 628 | DH11: 14 | DI11: 66 | DJ11: 21 | DK11: 106 | DL11: 17 | DM11: 84 | DN11: 28 | DO11: 129 | DP11: 341 | DQ11: 655 | DR11: 360 | DS11: 755 | DT11: 26 | DU11: 203 | DV11: 27 | DW11: 252 | DX11: 9 | DY11: 40 | DZ11: 9 | EA11: 44 | EB11: 20 | EC11: 70 | ED11: 23 | EE11: 78 | EF11: 18 | EG11: 50 | EH11: 23 | EI11: 77 | EJ11: 2 | EK11: 18 | EL11: 2 | EM11: 28 | EN11: 5659691 | EO11: 10037882 | EP11: 338 | EQ11: 645 | ER11: 381720 | ES11: 2380926 | ET11: 26 | EU11: 196 | EV11: 140520 | EW11: 589049 | EX11: 9 | EY11: 40 | EZ11: 104598 | FA11: 315130 | FB11: 20 | FC11: 66 | FD11: 14154 | FE11: 182787 | FF11: 2 | FG11: 18 | FH11: 30 | FI11: 563 | FJ11: 37 | FK11: 628 | FL11: 18 | FM11: 87 | FN11: 21 | FO11: 106 | FP11: 35 | FQ11: 179 | FR11: 37 | FS11: 188 | FT11: 2 | FU11: 7 | FV11: 2 | FW11: 7 | FX11: 4 | FY11: 8 | FZ11: 4 | GA11: 8 | GB11: 4 | GC11: 8 | GD11: 11384
A12: 11 - CareerSource Flagler Volusia | B12: FL | C12: 20141231 | D12: 739 | E12: 1352 | H12: 661 | I12: 1226 | J12: 141 | K12: 219 | L12: 4 | M12: 7 | N12: 55 | O12: 88 | P12: 20 | Q12: 32 | R12: 8 | S12: 25 | T12: 3 | U12: 4 | V12: 332 | W12: 918 | X12: 313 | Y12: 863 | Z12: 34 | AA12: 96 | AC12: 4 | AD12: 171 | AE12: 270 | AF12: 119 | AG12: 181 | AH12: 52 | AI12: 89 | AJ12: 148 | AK12: 240 | AL12: 23 | AM12: 30 | AN12: 210 | AO12: 769 | AR12: 194 | AS12: 713 | AT12: 25 | AU12: 95 | AV12: 2 | AW12: 4 | AX12: 20 | AY12: 138 | AZ12: 9 | BA12: 91 | BB12: 11 | BC12: 47 | BD12: 19 | BE12: 130 | BF12: 1 | BG12: 8 | BH12: 195 | BI12: 672 | BJ12: 182 | BK12: 625 | BL12: 21 | BM12: 81 | BN12: 2 | BO12: 3 | BP12: 19 | BQ12: 114 | BR12: 23 | BS12: 183 | BT12: 23 | BU12: 162 | BV12: 23 | BW12: 184 | BX12: 23 | BY12: 90 | BZ12: 25 | CA12: 105 | CB12: 7 | CC12: 62 | CD12: 9 | CE12: 90 | CF12: 39 | CG12: 204 | CH12: 40 | CI12: 208 | CJ12: 75 | CK12: 265 | CL12: 83 | CM12: 328 | CN12: 24 | CO12: 108 | CP12: 25 | CQ12: 124 | CR12: 5 | CS12: 25 | CT12: 6 | CU12: 34 | CV12: 4 | CW12: 37 | CX12: 5 | CY12: 68 | DA12: 2 | DC12: 3 | DD12: 121 | DE12: 365 | DF12: 163 | DG12: 458 | DH12: 13 | DI12: 69 | DJ12: 19 | DK12: 90 | DL12: 4 | DM12: 36 | DN12: 5 | DO12: 72 | DP12: 79 | DQ12: 657 | DR12: 88 | DS12: 713 | DT12: 20 | DU12: 170 | DV12: 21 | DW12: 186 | DX12: 4 | DY12: 53 | DZ12: 5 | EA12: 60 | EB12: 11 | EC12: 41 | ED12: 11 | EE12: 50 | EF12: 12 | EG12: 53 | EH12: 18 | EI12: 88 | EK12: 5 | EM12: 6 | EN12: 1093417 | EO12: 10461141 | EP12: 71 | EQ12: 599 | ER12: 334145 | ES12: 2455534 | ET12: 18 | EU12: 158 | EV12: 95427 | EW12: 849208 | EX12: 4 | EY12: 43 | EZ12: 20322 | FA12: 111489 | FB12: 6 | FC12: 35 | FE12: 92760 | FG12: 5 | FH12: 123 | FI12: 387 | FJ12: 163 | FK12: 458 | FL12: 13 | FM12: 80 | FN12: 19 | FO12: 90 | FQ12: 1 | FS12: 1 | FU12: 1 | FW12: 2 | FX12: 11 | FY12: 41 | FZ12: 11 | GA12: 41 | GB12: 11 | GC12: 41 | GD12: 11384
A13: 12 - CareerSource Central Florida | B13: FL | C13: 20141231 | D13: 4870 | E13: 5756 | H13: 3870 | I13: 4447 | J13: 1010 | K13: 1324 | M13: 1 | N13: 387 | O13: 478 | P13: 76 | Q13: 96 | R13: 73 | S13: 94 | T13: 7 | U13: 8 | V13: 1970 | W13: 2790 | X13: 1672 | Y13: 2306 | Z13: 300 | AA13: 487 | AD13: 1267 | AE13: 1338 | AF13: 791 | AG13: 825 | AH13: 476 | AI13: 513 | AJ13: 578 | AK13: 616 | AL13: 689 | AM13: 722 | AN13: 331 | AO13: 1196 | AR13: 207 | AS13: 769 | AT13: 124 | AU13: 433 | AW13: 1 | AX13: 15 | AY13: 90 | AZ13: 5 | BA13: 46 | BB13: 10 | BC13: 44 | BD13: 9 | BE13: 46 | BF13: 6 | BG13: 44 | BH13: 162 | BI13: 523 | BJ13: 103 | BK13: 341 | BL13: 59 | BM13: 186 | BO13: 1 | BP13: 8 | BQ13: 65 | BR13: 10 | BS13: 116 | BT13: 12 | BU13: 116 | BV13: 12 | BW13: 130 | BX13: 16 | BY13: 26 | BZ13: 36 | CA13: 72 | CB13: 2 | CC13: 24 | CD13: 4 | CE13: 29 | CF13: 95 | CG13: 324 | CH13: 101 | CI13: 330 | CJ13: 81 | CK13: 437 | CL13: 92 | CM13: 590 | CN13: 71 | CO13: 354 | CP13: 80 | CQ13: 439 | CR13: 12 | CS13: 68 | CT13: 14 | CU13: 87 | CV13: 3 | CW13: 37 | CX13: 5 | CY13: 53 | CZ13: 1 | DA13: 1 | DB13: 1 | DC13: 1 | DD13: 40 | DE13: 161 | DF13: 61 | DG13: 282 | DH13: 20 | DI13: 99 | DJ13: 32 | DK13: 193 | DL13: 3 | DM13: 30 | DN13: 5 | DO13: 53 | DP13: 107 | DQ13: 597 | DR13: 123 | DS13: 701 | DT13: 76 | DU13: 384 | DV13: 92 | DW13: 452 | DX13: 11 | DY13: 62 | DZ13: 12 | EA13: 81 | EB13: 11 | EC13: 103 | ED13: 17 | EE13: 119 | EF13: 7 | EG13: 50 | EH13: 7 | EI13: 71 | EN13: 1148919 | EO13: 6737843 | EP13: 107 | EQ13: 590 | ER13: 900938 | ES13: 4781784 | ET13: 75 | EU13: 382 | EV13: 85869 | EW13: 781266 | EX13: 11 | EY13: 61 | EZ13: 57983 | FA13: 466455 | FB13: 17 | FC13: 118 | FH13: 43 | FI13: 182 | FJ13: 61 | FK13: 282 | FL13: 22 | FM13: 121 | FN13: 32 | FO13: 193 | FP13: 12 | FQ13: 116 | FR13: 12 | FS13: 118 | FT13: 1 | FU13: 1 | FV13: 1 | FW13: 1 | FX13: 33 | FY13: 235 | FZ13: 33 | GA13: 235 | GB13: 33 | GC13: 235 | GD13: 11384
A14: 13 - CareerSource Brevard | B14: FL | C14: 20141231 | D14: 420 | E14: 814 | H14: 252 | I14: 439 | J14: 183 | K14: 406 | L14: 13 | M14: 28 | N14: 51 | O14: 89 | P14: 13 | Q14: 22 | R14: 10 | S14: 22 | T14: 1 | U14: 1 | V14: 182 | W14: 341 | X14: 131 | Y14: 238 | Z14: 59 | AA14: 116 | AB14: 4 | AC14: 10 | AD14: 269 | AE14: 468 | AF14: 112 | AG14: 175 | AH14: 157 | AI14: 293 | AJ14: 209 | AK14: 388 | AL14: 60 | AM14: 80 | AN14: 64 | AO14: 511 | AR14: 27 | AS14: 244 | AT14: 39 | AU14: 286 | AV14: 1 | AW14: 21 | AX14: 33 | AY14: 219 | AZ14: 13 | BA14: 69 | BB14: 20 | BC14: 150 | BD14: 31 | BE14: 198 | BF14: 2 | BG14: 21 | BH14: 41 | BI14: 316 | BJ14: 23 | BK14: 184 | BL14: 19 | BM14: 139 | BO14: 13 | BP14: 20 | BQ14: 82 | BR14: 30 | BS14: 142 | BT14: 30 | BU14: 116 | BV14: 34 | BW14: 147 | BX14: 36 | BY14: 91 | BZ14: 44 | CA14: 109 | CB14: 1 | CC14: 17 | CD14: 4 | CE14: 41 | CF14: 18 | CG14: 100 | CH14: 21 | CI14: 107 | CJ14: 51 | CK14: 149 | CL14: 54 | CM14: 166 | CN14: 95 | CO14: 275 | CP14: 103 | CQ14: 299 | CR14: 9 | CS14: 40 | CT14: 9 | CU14: 44 | CV14: 13 | CW14: 48 | CX14: 19 | CY14: 76 | CZ14: 5 | DA14: 13 | DB14: 5 | DC14: 15 | DD14: 34 | DE14: 95 | DF14: 58 | DG14: 176 | DH14: 25 | DI14: 86 | DJ14: 46 | DK14: 161 | DL14: 16 | DM14: 45 | DN14: 25 | DO14: 93 | DP14: 40 | DQ14: 172 | DR14: 46 | DS14: 189 | DT14: 66 | DU14: 201 | DV14: 68 | DW14: 216 | DX14: 13 | DY14: 41 | DZ14: 13 | EA14: 43 | EB14: 6 | EC14: 36 | ED14: 12 | EE14: 45 | EF14: 4 | EG14: 27 | EH14: 10 | EI14: 58 | EJ14: 5 | EK14: 19 | EL14: 5 | EM14: 21 | EN14: 508234 | EO14: 2422109 | EP14: 32 | EQ14: 151 | ER14: 845152 | ES14: 2762023 | ET14: 55 | EU14: 166 | EV14: 164182 | EW14: 591963 | EX14: 11 | EY14: 33 | EZ14: 16933 | FA14: 213746 | FB14: 11 | FC14: 43 | FD14: 69269 | FE14: 298789 | FF14: 4 | FG14: 11 | FH14: 36 | FI14: 103 | FJ14: 59 | FK14: 177 | FL14: 28 | FM14: 95 | FN14: 46 | FO14: 161 | FP14: 12 | FQ14: 31 | FR14: 12 | FS14: 35 | FT14: 3 | FU14: 6 | FV14: 4 | FW14: 11 | FX14: 8 | FY14: 17 | FZ14: 8 | GA14: 17 | GB14: 8 | GC14: 17 | GD14: 11384
A15: 14 - CareerSource Pinellas | B15: FL | C15: 20141231 | D15: 1794 | E15: 3502 | H15: 870 | I15: 2240 | J15: 933 | K15: 1275 | L15: 91 | M15: 118 | N15: 188 | O15: 236 | P15: 59 | Q15: 79 | R15: 56 | S15: 74 | T15: 8 | U15: 8 | V15: 736 | W15: 2282 | X15: 363 | Y15: 1658 | Z15: 374 | AA15: 628 | AB15: 72 | AC15: 108 | AD15: 583 | AE15: 827 | AF15: 308 | AG15: 396 | AH15: 275 | AI15: 431 | AJ15: 313 | AK15: 483 | AL15: 270 | AM15: 344 | AN15: 346 | AO15: 2198 | AR15: 221 | AS15: 1713 | AT15: 126 | AU15: 490 | AV15: 12 | AW15: 39 | AX15: 63 | AY15: 308 | AZ15: 22 | BA15: 107 | BB15: 41 | BC15: 201 | BD15: 42 | BE15: 216 | BF15: 21 | BG15: 92 | BH15: 320 | BI15: 2115 | BJ15: 211 | BK15: 1683 | BL15: 110 | BM15: 437 | BN15: 12 | BO15: 39 | BP15: 45 | BQ15: 171 | BR15: 48 | BS15: 202 | BT15: 72 | BU15: 279 | BV15: 79 | BW15: 303 | BX15: 7 | BY15: 35 | BZ15: 8 | CA15: 48 | CB15: 14 | CC15: 63 | CD15: 16 | CE15: 67 | CF15: 107 | CG15: 317 | CH15: 116 | CI15: 442 | CJ15: 46 | CK15: 203 | CL15: 47 | CM15: 215 | CN15: 112 | CO15: 652 | CP15: 120 | CQ15: 699 | CR15: 8 | CS15: 68 | CT15: 9 | CU15: 72 | CV15: 28 | CW15: 111 | CX15: 30 | CY15: 126 | CZ15: 6 | DA15: 22 | DB15: 6 | DC15: 22 | DD15: 285 | DE15: 2247 | DF15: 291 | DG15: 2289 | DH15: 57 | DI15: 293 | DJ15: 108 | DK15: 605 | DL15: 42 | DM15: 162 | DN15: 49 | DO15: 192 | DP15: 156 | DQ15: 2210 | DR15: 161 | DS15: 2262 | DT15: 169 | DU15: 915 | DV15: 185 | DW15: 990 | DX15: 22 | DY15: 133 | DZ15: 23 | EA15: 148 | EB15: 18 | EC15: 172 | ED15: 18 | EE15: 188 | EF15: 17 | EG15: 130 | EH15: 19 | EI15: 161 | EJ15: 4 | EK15: 7 | EL15: 4 | EM15: 7 | EN15: 3247249 | EO15: 46187328 | EP15: 145 | EQ15: 2110 | ER15: 2354326 | ES15: 11628366 | ET15: 150 | EU15: 747 | EV15: 364571 | EW15: 1959418 | EX15: 20 | EY15: 107 | EZ15: 78663 | FA15: 785176 | FB15: 16 | FC15: 158 | FD15: 61116 | FE15: 64755 | FF15: 4 | FG15: 5 | FH15: 290 | FI15: 2287 | FJ15: 291 | FK15: 2289 | FL15: 61 | FM15: 313 | FN15: 108 | FO15: 605 | FP15: 60 | FQ15: 233 | FR15: 62 | FS15: 240 | FU15: 3 | FV15: 6 | FW15: 22 | FX15: 47 | FY15: 120 | FZ15: 47 | GA15: 120 | GB15: 47 | GC15: 120 | GD15: 11384
A16: 15 - CareerSource Tampa Bay | B16: FL | C16: 20141231 | D16: 2809 | E16: 4652 | H16: 1437 | I16: 2688 | J16: 1400 | K16: 1996 | L16: 28 | M16: 43 | N16: 224 | O16: 310 | P16: 71 | Q16: 91 | R16: 50 | S16: 77 | T16: 2 | U16: 2 | V16: 1297 | W16: 3254 | X16: 645 | Y16: 1910 | Z16: 670 | AA16: 1366 | AB16: 22 | AC16: 31 | AD16: 900 | AE16: 1124 | AF16: 469 | AG16: 517 | AH16: 431 | AI16: 607 | AJ16: 562 | AK16: 734 | AL16: 338 | AM16: 390 | AN16: 317 | AO16: 2321 | AR16: 97 | AS16: 1563 | AT16: 221 | AU16: 763 | AV16: 2 | AW16: 39 | AX16: 91 | AY16: 283 | AZ16: 21 | BA16: 64 | BB16: 70 | BC16: 219 | BD16: 73 | BE16: 213 | BF16: 18 | BG16: 70 | BH16: 280 | BI16: 2156 | BJ16: 87 | BK16: 1453 | BL16: 194 | BM16: 708 | BN16: 2 | BO16: 39 | BP16: 30 | BQ16: 67 | BR16: 34 | BS16: 89 | BT16: 27 | BU16: 69 | BV16: 54 | BW16: 137 | BX16: 11 | BY16: 55 | BZ16: 104 | CA16: 359 | CB16: 12 | CC16: 32 | CD16: 13 | CE16: 41 | CF16: 222 | CG16: 401 | CH16: 234 | CI16: 486 | CJ16: 62 | CK16: 184 | CL16: 71 | CM16: 213 | CN16: 160 | CO16: 514 | CP16: 172 | CQ16: 574 | CR16: 21 | CS16: 72 | CT16: 25 | CU16: 89 | CV16: 27 | CW16: 71 | CX16: 31 | CY16: 91 | CZ16: 11 | DA16: 37 | DB16: 11 | DC16: 39 | DD16: 238 | DE16: 1109 | DF16: 264 | DG16: 1214 | DH16: 70 | DI16: 228 | DJ16: 165 | DK16: 521 | DL16: 14 | DM16: 36 | DN16: 44 | DO16: 118 | DP16: 131 | DQ16: 914 | DR16: 147 | DS16: 980 | DT16: 109 | DU16: 384 | DV16: 123 | DW16: 438 | DX16: 15 | DY16: 85 | DZ16: 18 | EA16: 95 | EB16: 18 | EC16: 61 | ED16: 20 | EE16: 72 | EF16: 2 | EG16: 20 | EH16: 4 | EI16: 40 | EJ16: 1 | EK16: 3 | EL16: 1 | EM16: 5 | EN16: 2604680 | EO16: 18182789 | EP16: 130 | EQ16: 912 | ER16: 1967819 | ES16: 6693406 | ET16: 109 | EU16: 383 | EV16: 366106 | EW16: 1703838 | EX16: 15 | EY16: 85 | EZ16: 102499 | FA16: 314860 | FB16: 20 | FC16: 72 | FD16: 10109 | FE16: 40212 | FF16: 1 | FG16: 3 | FH16: 248 | FI16: 1166 | FJ16: 264 | FK16: 1214 | FL16: 79 | FM16: 266 | FN16: 165 | FO16: 521 | FP16: 19 | FQ16: 50 | FR16: 31 | FS16: 82 | FT16: 1 | FU16: 3 | FV16: 12 | FW16: 40 | FX16: 16 | FY16: 112 | FZ16: 16 | GA16: 112 | GB16: 16 | GC16: 112 | GD16: 11384
A17: 16 - CareerSource Pasco Hernando | B17: FL | C17: 20141231 | D17: 921 | E17: 1359 | H17: 509 | I17: 773 | J17: 431 | K17: 611 | L17: 15 | M17: 22 | N17: 100 | O17: 141 | P17: 18 | Q17: 24 | R17: 8 | S17: 23 | T17: 1 | U17: 1 | V17: 354 | W17: 748 | X17: 205 | Y17: 470 | Z17: 154 | AA17: 290 | AB17: 1 | AC17: 12 | AD17: 205 | AE17: 321 | AF17: 76 | AG17: 114 | AH17: 129 | AI17: 207 | AJ17: 184 | AK17: 284 | AL17: 21 | AM17: 37 | AN17: 110 | AO17: 519 | AR17: 60 | AS17: 304 | AT17: 53 | AU17: 221 | AV17: 2 | AW17: 9 | AX17: 39 | AY17: 156 | AZ17: 13 | BA17: 58 | BB17: 26 | BC17: 98 | BD17: 31 | BE17: 135 | BF17: 8 | BG17: 21 | BH17: 91 | BI17: 464 | BJ17: 48 | BK17: 276 | BL17: 45 | BM17: 192 | BN17: 2 | BO17: 9 | BP17: 25 | BQ17: 116 | BR17: 32 | BS17: 138 | BT17: 27 | BU17: 137 | BV17: 33 | BW17: 145 | BX17: 24 | BY17: 81 | BZ17: 35 | CA17: 123 | CB17: 5 | CC17: 18 | CD17: 7 | CE17: 35 | CF17: 24 | CG17: 94 | CH17: 24 | CI17: 104 | CJ17: 27 | CK17: 132 | CL17: 28 | CM17: 141 | CN17: 54 | CO17: 227 | CP17: 55 | CQ17: 237 | CR17: 6 | CS17: 32 | CT17: 7 | CU17: 36 | CV17: 16 | CW17: 74 | CX17: 20 | CY17: 87 | CZ17: 4 | DA17: 15 | DB17: 4 | DC17: 15 | DD17: 76 | DE17: 308 | DF17: 78 | DG17: 356 | DH17: 43 | DI17: 171 | DJ17: 50 | DK17: 207 | DL17: 12 | DM17: 76 | DN17: 21 | DO17: 95 | DP17: 48 | DQ17: 407 | DR17: 53 | DS17: 430 | DT17: 46 | DU17: 282 | DV17: 50 | DW17: 302 | DX17: 7 | DY17: 47 | DZ17: 7 | EA17: 51 | EB17: 10 | EC17: 72 | ED17: 14 | EE17: 84 | EF17: 6 | EG17: 46 | EH17: 8 | EI17: 60 | EJ17: 1 | EK17: 18 | EL17: 2 | EM17: 19 | EN17: 704904 | EO17: 6839933 | EP17: 43 | EQ17: 366 | ER17: 526037 | ES17: 3777690 | ET17: 36 | EU17: 242 | EV17: 116261 | EW17: 648839 | EX17: 6 | EY17: 37 | EZ17: 62747 | FA17: 347116 | FB17: 13 | FC17: 76 | FD17: 16594 | FE17: 268160 | FF17: 1 | FG17: 18 | FH17: 76 | FI17: 316 | FJ17: 78 | FK17: 356 | FL17: 44 | FM17: 179 | FN17: 50 | FO17: 207 | FP17: 27 | FQ17: 139 | FR17: 33 | FS17: 145 | FT17: 1 | FU17: 2 | FV17: 4 | FW17: 15 | FX17: 11 | FY17: 42 | FZ17: 11 | GA17: 42 | GB17: 11 | GC17: 42 | GD17: 11384
A18: 17 - CareerSource Polk | B18: FL | C18: 20141231 | D18: 1182 | E18: 2233 | H18: 922 | I18: 1573 | J18: 277 | K18: 688 | N18: 73 | O18: 166 | P18: 24 | Q18: 36 | R18: 23 | S18: 36 | T18: 1 | U18: 1 | V18: 564 | W18: 967 | X18: 457 | Y18: 766 | Z18: 114 | AA18: 211 | AD18: 585 | AE18: 776 | AF18: 460 | AG18: 598 | AH18: 125 | AI18: 178 | AJ18: 181 | AK18: 240 | AL18: 404 | AM18: 536 | AN18: 126 | AO18: 1322 | AR18: 79 | AS18: 844 | AT18: 47 | AU18: 492 | AX18: 76 | AY18: 246 | AZ18: 62 | BA18: 167 | BB18: 14 | BC18: 79 | BD18: 13 | BE18: 92 | BF18: 63 | BG18: 154 | BH18: 99 | BI18: 1043 | BJ18: 63 | BK18: 689 | BL18: 36 | BM18: 365 | BP18: 16 | BQ18: 139 | BR18: 28 | BS18: 229 | BT18: 15 | BU18: 163 | BV18: 26 | BW18: 220 | BX18: 5 | BY18: 63 | BZ18: 31 | CA18: 154 | CB18: 48 | CC18: 115 | CD18: 52 | CE18: 126 | CF18: 65 | CG18: 607 | CH18: 83 | CI18: 749 | CJ18: 55 | CK18: 219 | CL18: 63 | CM18: 283 | CN18: 68 | CO18: 232 | CP18: 77 | CQ18: 281 | CR18: 14 | CS18: 42 | CT18: 14 | CU18: 53 | CV18: 10 | CW18: 71 | CX18: 17 | CY18: 104 | DD18: 73 | DE18: 358 | DF18: 122 | DG18: 593 | DH18: 30 | DI18: 110 | DJ18: 58 | DK18: 216 | DL18: 4 | DM18: 38 | DN18: 18 | DO18: 108 | DP18: 104 | DQ18: 375 | DR18: 124 | DS18: 420 | DT18: 43 | DU18: 150 | DV18: 48 | DW18: 168 | DX18: 21 | DY18: 47 | DZ18: 21 | EA18: 50 | EB18: 13 | EC18: 50 | ED18: 13 | EE18: 65 | EF18: 15 | EG18: 62 | EH18: 22 | EI18: 114 | EN18: 2214633 | EO18: 7478019 | EP18: 101 | EQ18: 365 | ER18: 550487 | ES18: 1973561 | ET18: 41 | EU18: 147 | EV18: 419397 | EW18: 875272 | EX18: 20 | EY18: 46 | EZ18: 48052 | FA18: 217118 | FB18: 12 | FC18: 63 | FH18: 90 | FI18: 422 | FJ18: 122 | FK18: 593 | FL18: 36 | FM18: 131 | FN18: 58 | FO18: 216 | FP18: 9 | FQ18: 90 | FR18: 16 | FS18: 126 | FX18: 8 | FY18: 47 | FZ18: 8 | GA18: 47 | GB18: 8 | GC18: 47 | GD18: 11384
A19: 18 - CareerSource Suncoast | B19: FL | C19: 20141231 | D19: 512 | E19: 862 | H19: 422 | I19: 687 | J19: 96 | K19: 189 | L19: 4 | M19: 7 | N19: 18 | O19: 49 | P19: 6 | Q19: 14 | R19: 4 | S19: 10 | V19: 380 | W19: 700 | X19: 322 | Y19: 580 | Z19: 61 | AA19: 129 | AB19: 3 | AC19: 7 | AD19: 99 | AE19: 197 | AF19: 45 | AG19: 102 | AH19: 54 | AI19: 95 | AJ19: 76 | AK19: 131 | AL19: 23 | AM19: 66 | AN19: 75 | AO19: 405 | AR19: 59 | AS19: 305 | AT19: 17 | AU19: 112 | AV19: 2 | AW19: 3 | AX19: 64 | AY19: 114 | AZ19: 43 | BA19: 65 | BB19: 21 | BC19: 49 | BD19: 26 | BE19: 66 | BF19: 38 | BG19: 48 | BH19: 72 | BI19: 381 | BJ19: 57 | BK19: 293 | BL19: 16 | BM19: 98 | BN19: 2 | BO19: 3 | BP19: 11 | BQ19: 74 | BR19: 13 | BS19: 90 | BT19: 12 | BU19: 91 | BV19: 20 | BW19: 120 | BX19: 1 | BY19: 11 | BZ19: 4 | CA19: 31 | CB19: 32 | CC19: 34 | CD19: 34 | CE19: 37 | CF19: 14 | CG19: 74 | CH19: 20 | CI19: 101 | CJ19: 38 | CK19: 106 | CL19: 42 | CM19: 118 | CN19: 30 | CO19: 116 | CP19: 34 | CQ19: 134 | CR19: 7 | CS19: 20 | CT19: 9 | CU19: 28 | CV19: 7 | CW19: 18 | CX19: 9 | CY19: 26 | DD19: 38 | DE19: 167 | DF19: 75 | DG19: 240 | DH19: 15 | DI19: 69 | DJ19: 30 | DK19: 126 | DL19: 7 | DM19: 24 | DN19: 13 | DO19: 41 | DP19: 72 | DQ19: 209 | DR19: 77 | DS19: 226 | DT19: 38 | DU19: 146 | DV19: 38 | DW19: 157 | DX19: 3 | DY19: 27 | DZ19: 3 | EA19: 31 | EB19: 7 | EC19: 25 | ED19: 7 | EE19: 28 | EF19: 35 | EG19: 58 | EH19: 38 | EI19: 70 | EN19: 1229489 | EO19: 3376991 | EP19: 67 | EQ19: 196 | ER19: 525940 | ES19: 2123912 | ET19: 32 | EU19: 132 | EV19: 34408 | EW19: 384947 | EX19: 3 | EY19: 25 | EZ19: 41880 | FA19: 123256 | FB19: 7 | FC19: 28 | FH19: 39 | FI19: 173 | FJ19: 75 | FK19: 240 | FL19: 15 | FM19: 75 | FN19: 30 | FO19: 126 | FP19: 12 | FQ19: 39 | FR19: 15 | FS19: 49 | FX19: 3 | FY19: 19 | FZ19: 3 | GA19: 19 | GB19: 3 | GC19: 19 | GD19: 11384
A20: 19 - CareerSource Heartland | B20: FL | C20: 20141231 | D20: 152 | E20: 222 | H20: 145 | I20: 208 | J20: 7 | K20: 14 | N20: 6 | O20: 10 | Q20: 2 | S20: 2 | V20: 136 | W20: 196 | X20: 130 | Y20: 186 | Z20: 6 | AA20: 10 | AD20: 147 | AE20: 254 | AF20: 102 | AG20: 156 | AH20: 45 | AI20: 98 | AJ20: 88 | AK20: 161 | AL20: 59 | AM20: 93 | AN20: 27 | AO20: 89 | AR20: 25 | AS20: 81 | AT20: 2 | AU20: 8 | AX20: 43 | AY20: 128 | AZ20: 30 | BA20: 66 | BB20: 13 | BC20: 62 | BD20: 18 | BE20: 90 | BF20: 25 | BG20: 38 | BH20: 26 | BI20: 76 | BJ20: 25 | BK20: 70 | BL20: 1 | BM20: 6 | BP20: 21 | BQ20: 83 | BR20: 22 | BS20: 89 | BT20: 23 | BU20: 92 | BV20: 23 | BW20: 96 | BX20: 9 | BY20: 42 | BZ20: 11 | CA20: 54 | CB20: 26 | CC20: 49 | CD20: 30 | CE20: 60 | CF20: 65 | CG20: 144 | CH20: 65 | CI20: 148 | CJ20: 6 | CK20: 32 | CL20: 6 | CM20: 34 | CN20: 4 | CO20: 14 | CP20: 4 | CQ20: 17 | CR20: 1 | CS20: 3 | CT20: 1 | CU20: 3 | CV20: 11 | CW20: 23 | CX20: 12 | CY20: 26 | DD20: 22 | DE20: 64 | DF20: 23 | DG20: 65 | DH20: 3 | DI20: 10 | DJ20: 3 | DK20: 14 | DL20: 11 | DM20: 27 | DN20: 12 | DO20: 31 | DP20: 16 | DQ20: 87 | DR20: 17 | DS20: 94 | DT20: 7 | DU20: 21 | DV20: 7 | DW20: 22 | DY20: 2 | DZ20: 1 | EA20: 4 | EB20: 4 | EC20: 11 | ED20: 4 | EE20: 11 | EF20: 36 | EG20: 50 | EH20: 38 | EI20: 54 | EN20: 264422 | EO20: 1444162 | EP20: 15 | EQ20: 83 | ER20: 130328 | ES20: 272541 | ET20: 7 | EU20: 20 | EW20: 25934 | EY20: 2 | EZ20: 40543 | FA20: 90524 | FB20: 3 | FC20: 10 | FH20: 22 | FI20: 64 | FJ20: 23 | FK20: 65 | FL20: 3 | FM20: 13 | FN20: 3 | FO20: 14 | FP20: 18 | FQ20: 49 | FR20: 18 | FS20: 50 | FX20: 1 | FY20: 6 | FZ20: 1 | GA20: 6 | GB20: 1 | GC20: 6 | GD20: 11384
A21: 20 - CareerSource Research Coast | B21: FL | C21: 20141231 | D21: 561 | E21: 1026 | H21: 415 | I21: 694 | J21: 154 | K21: 352 | L21: 1 | M21: 1 | N21: 49 | O21: 97 | P21: 12 | Q21: 31 | R21: 11 | S21: 30 | T21: 1 | U21: 1 | V21: 328 | W21: 686 | X21: 276 | Y21: 518 | Z21: 53 | AA21: 180 | AC21: 1 | AD21: 248 | AE21: 386 | AF21: 122 | AG21: 183 | AH21: 126 | AI21: 203 | AJ21: 181 | AK21: 286 | AL21: 67 | AM21: 100 | AN21: 126 | AO21: 559 | AR21: 72 | AS21: 329 | AT21: 56 | AU21: 244 | AX21: 67 | AY21: 189 | AZ21: 30 | BA21: 89 | BB21: 37 | BC21: 100 | BD21: 52 | BE21: 138 | BF21: 15 | BG21: 51 | BH21: 103 | BI21: 469 | BJ21: 61 | BK21: 281 | BL21: 44 | BM21: 200 | BP21: 15 | BQ21: 94 | BR21: 23 | BS21: 124 | BT21: 25 | BU21: 133 | BV21: 25 | BW21: 137 | BX21: 33 | BY21: 98 | BZ21: 40 | CA21: 120 | CB21: 13 | CC21: 32 | CD21: 19 | CE21: 45 | CF21: 65 | CG21: 256 | CH21: 71 | CI21: 279 | CJ21: 46 | CK21: 110 | CL21: 58 | CM21: 136 | CN21: 38 | CO21: 138 | CP21: 60 | CQ21: 185 | CR21: 8 | CS21: 20 | CT21: 14 | CU21: 31 | CV21: 11 | CW21: 42 | CX21: 15 | CY21: 57 | DD21: 20 | DE21: 97 | DF21: 66 | DG21: 190 | DH21: 17 | DI21: 63 | DJ21: 51 | DK21: 148 | DL21: 11 | DM21: 47 | DN21: 15 | DO21: 63 | DP21: 43 | DQ21: 164 | DR21: 49 | DS21: 182 | DT21: 26 | DU21: 122 | DV21: 28 | DW21: 130 | DX21: 3 | DY21: 23 | DZ21: 4 | EA21: 26 | EB21: 15 | EC21: 27 | ED21: 17 | EE21: 30 | EF21: 12 | EG21: 47 | EH21: 14 | EI21: 53 | EK21: 1 | EM21: 1 | EN21: 652240 | EO21: 2487785 | EP21: 38 | EQ21: 153 | ER21: 335372 | ES21: 1486196 | ET21: 23 | EU21: 109 | EV21: 69954 | EW21: 392081 | EX21: 3 | EY21: 23 | EZ21: 85792 | FA21: 131967 | FB21: 17 | FC21: 29 | FE21: 16127 | FG21: 1 | FH21: 24 | FI21: 110 | FJ21: 66 | FK21: 190 | FL21: 24 | FM21: 77 | FN21: 51 | FO21: 148 | FP21: 24 | FQ21: 115 | FR21: 24 | FS21: 117 | FX21: 4 | FY21: 26 | FZ21: 4 | GA21: 26 | GB21: 4 | GC21: 26 | GD21: 11384
A22: 21 - CareerSource Palm Beach County | B22: FL | C22: 20141231 | D22: 720 | E22: 1300 | F22: 1 | G22: 1 | H22: 540 | I22: 998 | J22: 183 | K22: 311 | L22: 5 | M22: 6 | N22: 43 | O22: 64 | P22: 11 | Q22: 16 | R22: 11 | S22: 16 | T22: 3 | U22: 4 | V22: 364 | W22: 726 | X22: 269 | Y22: 541 | Z22: 97 | AA22: 190 | AC22: 6 | AD22: 284 | AE22: 456 | AF22: 143 | AG22: 251 | AH22: 141 | AI22: 205 | AJ22: 166 | AK22: 246 | AL22: 118 | AM22: 210 | AN22: 85 | AO22: 780 | AR22: 53 | AS22: 627 | AT22: 34 | AU22: 160 | AV22: 1 | AW22: 1 | AX22: 48 | AY22: 233 | AZ22: 30 | BA22: 143 | BB22: 18 | BC22: 90 | BD22: 17 | BE22: 110 | BF22: 31 | BG22: 123 | BH22: 75 | BI22: 611 | BJ22: 45 | BK22: 463 | BL22: 32 | BM22: 154 | BN22: 1 | BO22: 1 | BP22: 30 | BQ22: 259 | BR22: 37 | BS22: 390 | BT22: 13 | BU22: 191 | BV22: 29 | BW22: 317 | BX22: 5 | BY22: 10 | BZ22: 28 | CA22: 86 | CB22: 21 | CC22: 66 | CD22: 26 | CE22: 105 | CF22: 43 | CG22: 158 | CH22: 49 | CI22: 202 | CJ22: 45 | CK22: 154 | CL22: 48 | CM22: 336 | CN22: 30 | CO22: 188 | CP22: 33 | CQ22: 213 | CR22: 6 | CS22: 18 | CT22: 8 | CU22: 25 | CV22: 15 | CW22: 110 | CX22: 19 | CY22: 174 | DA22: 1 | DC22: 1 | DD22: 65 | DE22: 338 | DF22: 86 | DG22: 405 | DH22: 19 | DI22: 146 | DJ22: 33 | DK22: 206 | DL22: 6 | DM22: 57 | DN22: 19 | DO22: 180 | DP22: 43 | DQ22: 458 | DR22: 51 | DS22: 542 | DT22: 54 | DU22: 191 | DV22: 64 | DW22: 217 | DX22: 6 | DY22: 24 | DZ22: 7 | EA22: 25 | EB22: 12 | EC22: 127 | ED22: 15 | EE22: 148 | EF22: 46 | EG22: 128 | EH22: 49 | EI22: 154 | EK22: 1 | EM22: 1 | EN22: 668417 | EO22: 8886164 | EP22: 35 | EQ22: 409 | ER22: 995901 | ES22: 3275979 | ET22: 46 | EU22: 157 | EV22: 122454 | EW22: 457123 | EX22: 6 | EY22: 23 | EZ22: 39977 | FA22: 662299 | FB22: 12 | FC22: 128 | FE22: 12088 | FG22: 1 | FH22: 68 | FI22: 359 | FJ22: 86 | FK22: 405 | FL22: 20 | FM22: 163 | FN22: 33 | FO22: 206 | FP22: 7 | FQ22: 139 | FR22: 8 | FS22: 161 | FW22: 1 | FX22: 11 | FY22: 19 | FZ22: 11 | GA22: 19 | GB22: 11 | GC22: 19 | GD22: 11384
A23: 22 - CareerSource Broward | B23: FL | C23: 20141231 | D23: 2129 | E23: 3027 | H23: 1197 | I23: 1611 | J23: 967 | K23: 1463 | L23: 21 | M23: 30 | N23: 135 | O23: 199 | P23: 29 | Q23: 41 | R23: 25 | S23: 38 | T23: 1 | U23: 1 | V23: 711 | W23: 1393 | X23: 408 | Y23: 749 | Z23: 304 | AA23: 656 | AB23: 15 | AC23: 30 | AD23: 849 | AE23: 1064 | AF23: 699 | AG23: 794 | AH23: 150 | AI23: 270 | AJ23: 205 | AK23: 387 | AL23: 644 | AM23: 677 | AN23: 265 | AO23: 1326 | AR23: 126 | AS23: 621 | AT23: 144 | AU23: 722 | AV23: 4 | AW23: 9 | AX23: 63 | AY23: 377 | AZ23: 40 | BA23: 164 | BB23: 23 | BC23: 213 | BD23: 32 | BE23: 318 | BF23: 31 | BG23: 59 | BH23: 232 | BI23: 1167 | BJ23: 108 | BK23: 546 | BL23: 127 | BM23: 635 | BN23: 4 | BO23: 9 | BP23: 54 | BQ23: 571 | BR23: 60 | BS23: 749 | BT23: 1 | BU23: 156 | BV23: 9 | BW23: 368 | BX23: 90 | BY23: 301 | BZ23: 105 | CA23: 384 | CB23: 30 | CC23: 43 | CD23: 33 | CE23: 105 | CF23: 36 | CG23: 356 | CH23: 116 | CI23: 557 | CJ23: 85 | CK23: 410 | CL23: 91 | CM23: 461 | CN23: 177 | CO23: 766 | CP23: 186 | CQ23: 818 | CR23: 24 | CS23: 92 | CT23: 25 | CU23: 100 | CV23: 34 | CW23: 305 | CX23: 38 | CY23: 394 | CZ23: 1 | DA23: 1 | DB23: 1 | DC23: 1 | DD23: 97 | DE23: 439 | DF23: 140 | DG23: 633 | DH23: 122 | DI23: 539 | DJ23: 167 | DK23: 706 | DM23: 10 | DN23: 40 | DO23: 412 | DP23: 187 | DQ23: 608 | DR23: 200 | DS23: 663 | DT23: 188 | DU23: 706 | DV23: 217 | DW23: 783 | DX23: 32 | DY23: 83 | DZ23: 38 | EA23: 96 | EB23: 93 | EC23: 220 | ED23: 117 | EE23: 279 | EF23: 142 | EG23: 246 | EH23: 182 | EI23: 309 | EN23: 2193915 | EO23: 7077182 | EP23: 165 | EQ23: 529 | ER23: 3033824 | ES23: 10929524 | ET23: 166 | EU23: 609 | EV23: 456634 | EW23: 1336872 | EX23: 29 | EY23: 73 | EZ23: 341345 | FA23: 801016 | FB23: 92 | FC23: 198 | FH23: 102 | FI23: 466 | FJ23: 140 | FK23: 633 | FL23: 127 | FM23: 573 | FN23: 167 | FO23: 706 | FP23: 1 | FQ23: 7 | FR23: 1 | FS23: 11 | FT23: 1 | FU23: 1 | FV23: 1 | FW23: 1 | FX23: 7 | FY23: 42 | FZ23: 7 | GA23: 42 | GB23: 7 | GC23: 42 | GD23: 11384
A24: 23 - CareerSource South Florida | B24: FL | C24: 20141231 | D24: 3520 | E24: 5569 | H24: 2354 | I24: 3704 | J24: 1215 | K24: 1966 | L24: 15 | M24: 29 | N24: 126 | O24: 181 | P24: 22 | Q24: 30 | R24: 17 | S24: 24 | T24: 2 | U24: 2 | V24: 897 | W24: 1802 | X24: 554 | Y24: 1133 | Z24: 353 | AA24: 699 | AC24: 4 | AD24: 2613 | AE24: 3168 | AF24: 1785 | AG24: 2180 | AH24: 828 | AI24: 988 | AJ24: 1333 | AK24: 1571 | AL24: 1279 | AM24: 1596 | AN24: 492 | AO24: 2684 | AR24: 323 | AS24: 1777 | AT24: 180 | AU24: 970 | AV24: 3 | AW24: 20 | AX24: 122 | AY24: 736 | AZ24: 97 | BA24: 535 | BB24: 25 | BC24: 201 | BD24: 37 | BE24: 301 | BF24: 85 | BG24: 435 | BH24: 312 | BI24: 1904 | BJ24: 187 | BK24: 1179 | BL24: 134 | BM24: 778 | BN24: 3 | BO24: 13 | BP24: 97 | BQ24: 444 | BR24: 148 | BS24: 590 | BT24: 99 | BU24: 473 | BV24: 160 | BW24: 611 | BX24: 63 | BY24: 371 | BZ24: 110 | CA24: 636 | CB24: 44 | CC24: 329 | CD24: 84 | CE24: 468 | CF24: 286 | CG24: 2644 | CH24: 352 | CI24: 2940 | CJ24: 327 | CK24: 1144 | CL24: 397 | CM24: 1496 | CN24: 234 | CO24: 791 | CP24: 281 | CQ24: 996 | CR24: 9 | CS24: 50 | CT24: 14 | CU24: 69 | CV24: 40 | CW24: 106 | CX24: 59 | CY24: 142 | CZ24: 4 | DA24: 19 | DB24: 4 | DC24: 21 | DD24: 146 | DE24: 531 | DF24: 309 | DG24: 1044 | DH24: 130 | DI24: 482 | DJ24: 230 | DK24: 811 | DL24: 25 | DM24: 79 | DN24: 72 | DO24: 178 | DP24: 216 | DQ24: 1165 | DR24: 256 | DS24: 1433 | DT24: 166 | DU24: 709 | DV24: 181 | DW24: 799 | DX24: 13 | DY24: 67 | DZ24: 16 | EA24: 81 | EB24: 16 | EC24: 67 | ED24: 18 | EE24: 76 | EF24: 96 | EG24: 291 | EH24: 120 | EI24: 371 | EJ24: 2 | EK24: 32 | EL24: 3 | EM24: 37 | EN24: 2523447 | EO24: 12677077 | EP24: 193 | EQ24: 1028 | ER24: 2652430 | ES24: 10397804 | ET24: 152 | EU24: 642 | EV24: 215156 | EW24: 1023864 | EX24: 11 | EY24: 61 | EZ24: 107436 | FA24: 425633 | FB24: 17 | FC24: 72 | FD24: 18082 | FE24: 361098 | FF24: 2 | FG24: 29 | FH24: 179 | FI24: 693 | FJ24: 312 | FK24: 1047 | FL24: 152 | FM24: 586 | FN24: 230 | FO24: 811 | FP24: 18 | FQ24: 48 | FR24: 22 | FS24: 68 | FU24: 8 | FV24: 3 | FW24: 15 | FX24: 16 | FY24: 43 | FZ24: 16 | GA24: 43 | GB24: 16 | GC24: 43 | GD24: 11384
A25: 24 - CareerSource Southwest Florida | B25: FL | C25: 20141231 | D25: 1296 | E25: 2187 | H25: 1053 | I25: 1699 | J25: 255 | K25: 529 | N25: 89 | O25: 165 | P25: 38 | Q25: 60 | R25: 5 | S25: 34 | T25: 1 | U25: 2 | V25: 940 | W25: 1501 | X25: 773 | Y25: 1180 | Z25: 175 | AA25: 345 | AD25: 794 | AE25: 958 | AF25: 636 | AG25: 736 | AH25: 158 | AI25: 222 | AJ25: 283 | AK25: 384 | AL25: 511 | AM25: 573 | AN25: 252 | AO25: 1039 | AR25: 188 | AS25: 742 | AT25: 72 | AU25: 326 | AX25: 72 | AY25: 211 | AZ25: 56 | BA25: 129 | BB25: 16 | BC25: 82 | BD25: 29 | BE25: 128 | BF25: 43 | BG25: 82 | BH25: 227 | BI25: 906 | BJ25: 168 | BK25: 653 | BL25: 67 | BM25: 279 | BP25: 26 | BQ25: 126 | BR25: 38 | BS25: 179 | BT25: 37 | BU25: 177 | BV25: 38 | BW25: 183 | BX25: 21 | BY25: 104 | BZ25: 35 | CA25: 156 | CB25: 38 | CC25: 61 | CD25: 44 | CE25: 83 | CF25: 195 | CG25: 513 | CH25: 262 | CI25: 669 | CJ25: 61 | CK25: 262 | CL25: 76 | CM25: 392 | CN25: 43 | CO25: 199 | CP25: 51 | CQ25: 295 | CR25: 10 | CS25: 42 | CT25: 10 | CU25: 60 | CV25: 14 | CW25: 48 | CX25: 21 | CY25: 69 | DD25: 70 | DE25: 305 | DF25: 102 | DG25: 491 | DH25: 24 | DI25: 119 | DJ25: 40 | DK25: 249 | DL25: 14 | DM25: 46 | DN25: 21 | DO25: 69 | DP25: 96 | DQ25: 458 | DR25: 102 | DS25: 511 | DT25: 48 | DU25: 221 | DV25: 49 | DW25: 252 | DX25: 11 | DY25: 52 | DZ25: 12 | EA25: 55 | EB25: 8 | EC25: 26 | ED25: 11 | EE25: 37 | EF25: 51 | EG25: 95 | EH25: 58 | EI25: 123 | EN25: 1317150 | EO25: 6325442 | EP25: 85 | EQ25: 425 | ER25: 598475 | ES25: 2901975 | ET25: 40 | EU25: 198 | EV25: 128260 | EW25: 747159 | EX25: 9 | EY25: 46 | EZ25: 30632 | FA25: 118676 | FB25: 8 | FC25: 32 | FH25: 82 | FI25: 399 | FJ25: 102 | FK25: 491 | FL25: 30 | FM25: 174 | FN25: 40 | FO25: 249 | FP25: 31 | FQ25: 114 | FR25: 31 | FS25: 116 | FX25: 11 | FY25: 68 | FZ25: 11 | GA25: 68 | GB25: 11 | GC25: 68 | GD25: 11384
A26: National Emergency Grant - Florida | B26: FL | C26: 20141231 | D26: 469 | E26: 1272 | L26: 469 | M26: 1272 | N26: 99 | O26: 299 | P26: 5 | Q26: 20 | R26: 4 | S26: 19 | V26: 118 | W26: 337 | AB26: 118 | AC26: 337 | AN26: 235 | AO26: 1111 | AV26: 235 | AW26: 1111 | BH26: 74 | BI26: 349 | BN26: 74 | BO26: 349 | CR26: 36 | CS26: 149 | CT26: 43 | CU26: 215 | CZ26: 183 | DA26: 846 | DB26: 234 | DC26: 1364 | DX26: 37 | DY26: 134 | DZ26: 41 | EA26: 146 | EJ26: 185 | EK26: 715 | EL26: 211 | EM26: 789 | EV26: 776779 | EW26: 2800043 | EX26: 29 | EY26: 106 | FD26: 3829919 | FE26: 14847404 | FF26: 161 | FG26: 619 | FT26: 35 | FU26: 179 | FV26: 77 | FW26: 440 | FX26: 5 | FY26: 40 | FZ26: 5 | GA26: 40 | GB26: 5 | GC26: 40 | GD26: 11384
A27: Rapid Response - Florida | B27: FL | C27: 20141231 | D27: 19 | E27: 27 | J27: 19 | K27: 27 | V27: 4 | W27: 7 | Z27: 4 | AA27: 7 | AN27: 6 | AO27: 16 | AT27: 6 | AU27: 16 | BH27: 4 | BI27: 4 | BL27: 4 | BM27: 4 | CN27: 1 | CO27: 29 | CP27: 1 | CQ27: 45 | CS27: 2 | CU27: 3 | DI27: 6 | DK27: 9 | DT27: 10 | DU27: 99 | DV27: 11 | DW27: 110 | DX27: 1 | DY27: 5 | DZ27: 1 | EA27: 5 | ER27: 110549 | ES27: 1116290 | ET27: 9 | EU27: 95 | EV27: 22074 | EW27: 48702 | EX27: 1 | EY27: 5 | FM27: 8 | FO27: 9 | GD27: 11384
A28: Statewide Program - Florida | B28: FL | C28: 20141231 | D28: 119 | E28: 206 | H28: 46 | I28: 67 | J28: 74 | K28: 140 | L28: 48 | M28: 104 | N28: 32 | O28: 51 | V28: 14 | W28: 31 | Z28: 14 | AA28: 31 | AB28: 11 | AC28: 28 | AD28: 5 | AE28: 5 | AH28: 5 | AI28: 5 | AJ28: 5 | AK28: 5 | AN28: 25 | AO28: 130 | AR28: 4 | AS28: 38 | AT28: 21 | AU28: 92 | AV28: 18 | AW28: 76 | BH28: 12 | BI28: 55 | BJ28: 2 | BK28: 11 | BL28: 10 | BM28: 44 | BN28: 7 | BO28: 33 | BQ28: 1 | BS28: 2 | BU28: 2 | BW28: 2 | CJ28: 6 | CK28: 123 | CL28: 6 | CM28: 154 | CN28: 12 | CO28: 83 | CP28: 15 | CQ28: 142 | CR28: 3 | CS28: 26 | CT28: 3 | CU28: 41 | CZ28: 10 | DA28: 55 | DB28: 11 | DC28: 97 | DD28: 1 | DE28: 12 | DF28: 5 | DG28: 33 | DH28: 3 | DI28: 25 | DJ28: 8 | DK28: 73 | DP28: 390 | DQ28: 451 | DR28: 420 | DS28: 486 | DT28: 25 | DU28: 100 | DV28: 30 | DW28: 112 | DX28: 14 | DY28: 36 | DZ28: 16 | EA28: 38 | EE28: 1 | EG28: 2 | EI28: 3 | EJ28: 14 | EK28: 60 | EL28: 17 | EM28: 65 | EN28: 10836879 | EO28: 11628763 | EP28: 377 | EQ28: 436 | ER28: 407938 | ES28: 1749151 | ET28: 25 | EU28: 92 | EV28: 419337 | EW28: 783173 | EX28: 14 | EY28: 36 | FA28: 0 | FC28: 1 | FD28: 271724 | FE28: 1219012 | FF28: 14 | FG28: 52 | FH28: 2 | FI28: 14 | FJ28: 5 | FK28: 33 | FL28: 5 | FM28: 38 | FN28: 8 | FO28: 73 | FQ28: 2 | FS28: 2 | FT28: 4 | FU28: 24 | FV28: 6 | FW28: 43 | FX28: 2 | FY28: 4 | FZ28: 2 | GA28: 4 | GB28: 2 | GC28: 4 | GD28: 11384

Sheet ByState (hidden)
A1: WIB_NAME | B1: STATE_NAME | C1: RPT_QTR_ID | D1: CUR_PTCPNT_ALADLT | E1: ROL_PTCPNT_ALADLT | F1: CUR_PTCPNT_JSTSLF | G1: ROL_PTCPNT_JSTSLF | H1: CUR_PTCPNT_WIADLT | I1: ROL_PTCPNT_WIADLT | J1: CUR_PTCPNT_DISLOC | K1: ROL_PTCPNT_DISLOC | L1: CUR_PTCPNT_NATLEG | M1: ROL_PTCPNT_NATLEG | N1: CUR_PTCPNT_VETRAN | O1: ROL_PTCPNT_VETRAN | P1: CUR_PTCPNT_VET911 | Q1: ROL_PTCPNT_VET911 | R1: CUR_PTCPNT_VETSVC | S1: ROL_PTCPNT_VETSVC | T1: CUR_PTCPNT_VETTAP | U1: ROL_PTCPNT_VETTAP | V1: CUR_PTCPNT_TRNSVC | W1: ROL_PTCPNT_TRNSVC | X1: CUR_PTCPNT_TRNADT | Y1: ROL_PTCPNT_TRNADT | Z1: CUR_PTCPNT_TRNDIS | AA1: ROL_PTCPNT_TRNDIS | AB1: CUR_PTCPNT_TRNNEG | AC1: ROL_PTCPNT_TRNNEG | AD1: CUR_PTCPNT_TYOUTH | AE1: ROL_PTCPNT_TYOUTH | AF1: CUR_PTCPNT_YNGYUT | AG1: ROL_PTCPNT_YNGYUT | AH1: CUR_PTCPNT_OLDYUT | AI1: ROL_PTCPNT_OLDYUT | AJ1: CUR_PTCPNT_OTSCHL | AK1: ROL_PTCPNT_OTSCHL | AL1: CUR_PTCPNT_INSCHL | AM1: ROL_PTCPNT_INSCHL | AN1: CUR_EXITER_ALADLT | AO1: ROL_EXITER_ALADLT | AP1: CUR_EXITER_JSTSLF | AQ1: ROL_EXITER_JSTSLF | AR1: CUR_EXITER_WIADLT | AS1: ROL_EXITER_WIADLT | AT1: CUR_EXITER_DISLOC | AU1: ROL_EXITER_DISLOC | AV1: CUR_EXITER_NATLEG | AW1: ROL_EXITER_NATLEG | AX1: CUR_EXITER_TYOUTH | AY1: ROL_EXITER_TYOUTH | AZ1: CUR_EXITER_YNGYUT | BA1: ROL_EXITER_YNGYUT | BB1: CUR_EXITER_OLDYUT | BC1: ROL_EXITER_OLDYUT | BD1: CUR_EXITER_OTSCHL | BE1: ROL_EXITER_OTSCHL | BF1: CUR_EXITER_INSCHL | BG1: ROL_EXITER_INSCHL | BH1: CUR_EXITER_TRNSVC | BI1: ROL_EXITER_TRNSVC | BJ1: CUR_EXITER_TRNADT | BK1: ROL_EXITER_TRNADT | BL1: CUR_EXITER_TRNDIS | BM1: ROL_EXITER_TRNDIS | BN1: CUR_EXITER_TRNNEG | BO1: ROL_EXITER_TRNNEG | BP1: CUR_TYOUTH_PLC_NUM | BQ1: ROL_TYOUTH_PLC_NUM | BR1: CUR_TYOUTH_PLC_DEN | BS1: ROL_TYOUTH_PLC_DEN | BT1: CUR_TYOUTH_ADC_NUM | BU1: ROL_TYOUTH_ADC_NUM | BV1: CUR_TYOUTH_ADC_DEN | BW1: ROL_TYOUTH_ADC_DEN | BX1: CUR_TYOUTH_LIT_NUM | BY1: ROL_TYOUTH_LIT_NUM | BZ1: CUR_TYOUTH_LIT_DEN | CA1: ROL_TYOUTH_LIT_DEN | CB1: CUR_YNGYUT_DER_NUM | CC1: ROL_YNGYUT_DER_NUM | CD1: CUR_YNGYUT_DER_DEN | CE1: ROL_YNGYUT_DER_DEN | CF1: CUR_YNGYUT_SAR_NUM | CG1: ROL_YNGYUT_SAR_NUM | CH1: CUR_YNGYUT_SAR_DEN | CI1: ROL_YNGYUT_SAR_DEN | CJ1: CUR_WIADLT_EER_NUM | CK1: ROL_WIADLT_EER_NUM | CL1: CUR_WIADLT_EER_DEN | CM1: ROL_WIADLT_EER_DEN | CN1: CUR_DISLOC_EER_NUM | CO1: ROL_DISLOC_EER_NUM | CP1: CUR_DISLOC_EER_DEN | CQ1: ROL_DISLOC_EER_DEN | CR1: CUR_VETRAN_EER_NUM | CS1: ROL_VETRAN_EER_NUM | CT1: CUR_VETRAN_EER_DEN | CU1: ROL_VETRAN_EER_DEN | CV1: CUR_OLDYUT_EER_NUM | CW1: ROL_OLDYUT_EER_NUM | CX1: CUR_OLDYUT_EER_DEN | CY1: ROL_OLDYUT_EER_DEN | CZ1: CUR_NATLEG_EER_NUM | DA1: ROL_NATLEG_EER_NUM | DB1: CUR_NATLEG_EER_DEN | DC1: ROL_NATLEG_EER_DEN | DD1: CUR_WIADLT_ECR_NUM | DE1: ROL_WIADLT_ECR_NUM | DF1: CUR_WIADLT_ECR_DEN | DG1: ROL_WIADLT_ECR_DEN | DH1: CUR_DISLOC_ECR_NUM | DI1: ROL_DISLOC_ECR_NUM | DJ1: CUR_DISLOC_ECR_DEN | DK1: ROL_DISLOC_ECR_DEN | DL1: CUR_OLDYUT_ECR_NUM | DM1: ROL_OLDYUT_ECR_NUM | DN1: CUR_OLDYUT_ECR_DEN | DO1: ROL_OLDYUT_ECR_DEN | DP1: CUR_WIADLT_RET_NUM | DQ1: ROL_WIADLT_RET_NUM | DR1: CUR_WIADLT_RET_DEN | DS1: ROL_WIADLT_RET_DEN | DT1: CUR_DISLOC_RET_NUM | DU1: ROL_DISLOC_RET_NUM | DV1: CUR_DISLOC_RET_DEN | DW1: ROL_DISLOC_RET_DEN | DX1: CUR_VETRAN_RET_NUM | DY1: ROL_VETRAN_RET_NUM | DZ1: CUR_VETRAN_RET_DEN | EA1: ROL_VETRAN_RET_DEN | EB1: CUR_OLDYUT_RET_NUM | EC1: ROL_OLDYUT_RET_NUM | ED1: CUR_OLDYUT_RET_DEN | EE1: ROL_OLDYUT_RET_DEN | EF1: CUR_YNGYUT_RET_NUM | EG1: ROL_YNGYUT_RET_NUM | EH1: CUR_YNGYUT_RET_DEN | EI1: ROL_YNGYUT_RET_DEN | EJ1: CUR_NATLEG_RET_NUM | EK1: ROL_NATLEG_RET_NUM | EL1: CUR_NATLEG_RET_DEN | EM1: ROL_NATLEG_RET_DEN | EN1: CUR_WIADLT_AVG_NUM | EO1: ROL_WIADLT_AVG_NUM | EP1: CUR_WIADLT_AVG_DEN | EQ1: ROL_WIADLT_AVG_DEN | ER1: CUR_DISLOC_AVG_NUM | ES1: ROL_DISLOC_AVG_NUM | ET1: CUR_DISLOC_AVG_DEN | EU1: ROL_DISLOC_AVG_DEN | EV1: CUR_VETRAN_AVG_NUM | EW1: ROL_VETRAN_AVG_NUM | EX1: CUR_VETRAN_AVG_DEN | EY1: ROL_VETRAN_AVG_DEN | EZ1: CUR_OLDYUT_AVG_NUM | FA1: ROL_OLDYUT_AVG_NUM | FB1: CUR_OLDYUT_AVG_DEN | FC1: ROL_OLDYUT_AVG_DEN | FD1: CUR_NATLEG_AVG_NUM | FE1: ROL_NATLEG_AVG_NUM | FF1: CUR_NATLEG_AVG_DEN | FG1: ROL_NATLEG_AVG_DEN | FH1: CUR_WIADLT_CAR_NUM | FI1: ROL_WIADLT_CAR_NUM | FJ1: CUR_WIADLT_CAR_DEN | FK1: ROL_WIADLT_CAR_DEN | FL1: CUR_DISLOC_CAR_NUM | FM1: ROL_DISLOC_CAR_NUM | FN1: CUR_DISLOC_CAR_DEN | FO1: ROL_DISLOC_CAR_DEN | FP1: CUR_TYOUTH_CAR_NUM | FQ1: ROL_TYOUTH_CAR_NUM | FR1: CUR_TYOUTH_CAR_DEN | FS1: ROL_TYOUTH_CAR_DEN | FT1: CUR_NATLEG_CAR_NUM | FU1: ROL_NATLEG_CAR_NUM | FV1: CUR_NATLEG_CAR_DEN | FW1: ROL_NATLEG_CAR_DEN | FX1: CUR_REACHD | FY1: ROL_REACHD | FZ1: CUR_SERVCD | GA1: ROL_SERVCD | GB1: CUR_STAFSV | GC1: ROL_STAFSV | GD1: FILEIMPORTLOGID
A2: State | B2: FL | C2: 20141231 | D2: 27185 | E2: 43310 | F2: 1 | G2: 1 | H2: 18735 | I2: 29435 | J2: 8313 | K2: 13178 | L2: 771 | M2: 1784 | N2: 2067 | O2: 3284 | P2: 559 | Q2: 831 | R2: 423 | S2: 718 | T2: 41 | U2: 54 | V2: 12197 | W2: 23873 | X2: 9019 | Y2: 17577 | Z2: 3160 | AA2: 6202 | AB2: 281 | AC2: 664 | AD2: 11613 | AE2: 15371 | AF2: 7652 | AG2: 9790 | AH2: 3961 | AI2: 5581 | AJ2: 5718 | AK2: 7879 | AL2: 5894 | AM2: 7490 | AN2: 3929 | AO2: 20777 | AR2: 2380 | AS2: 13661 | AT2: 1362 | AU2: 6303 | AV2: 286 | AW2: 1407 | AX2: 1182 | AY2: 4882 | AZ2: 726 | BA2: 2758 | BB2: 456 | BC2: 2124 | BD2: 588 | BE2: 2875 | BF2: 594 | BG2: 2006 | BH2: 3010 | BI2: 16490 | BJ2: 1929 | BK2: 11408 | BL2: 1047 | BM2: 4977 | BN2: 113 | BO2: 584 | BP2: 538 | BQ2: 3115 | BR2: 715 | BS2: 4407 | BT2: 572 | BU2: 3230 | BV2: 757 | BW2: 4259 | BX2: 424 | BY2: 1712 | BZ2: 775 | CA2: 3121 | CB2: 423 | CC2: 1443 | CD2: 538 | CE2: 2001 | CF2: 1555 | CG2: 7899 | CH2: 1980 | CI2: 9560 | CJ2: 1259 | CK2: 4940 | CL2: 1438 | CM2: 6231 | CN2: 1348 | CO2: 5360 | CP2: 1523 | CQ2: 6308 | CR2: 226 | CS2: 940 | CT2: 263 | CU2: 1200 | CV2: 271 | CW2: 1310 | CX2: 357 | CY2: 1803 | CZ2: 251 | DA2: 1103 | DB2: 306 | DC2: 1685 | DD2: 1780 | DE2: 8931 | DF2: 2396 | DG2: 11192 | DH2: 741 | DI2: 3034 | DJ2: 1246 | DK2: 5044 | DL2: 213 | DM2: 903 | DN2: 436 | DO2: 2091 | DP2: 2543 | DQ2: 11444 | DR2: 2786 | DS2: 12569 | DT2: 1245 | DU2: 5556 | DV2: 1383 | DW2: 6186 | DX2: 279 | DY2: 1163 | DZ2: 311 | EA2: 1296 | EB2: 300 | EC2: 1235 | ED2: 357 | EE2: 1458 | EF2: 643 | EG2: 1744 | EH2: 790 | EI2: 2378 | EJ2: 234 | EK2: 947 | EL2: 267 | EM2: 1056 | EN2: 45161585 | EO2: 195665592 | EP2: 2391 | EQ2: 10721 | ER2: 18554811 | ES2: 78610889 | ET2: 1127 | EU2: 4955 | EV2: 4836986 | EW2: 19219056 | EX2: 252 | EY2: 1028 | EZ2: 1392066 | FA2: 5807501 | FB2: 307 | FC2: 1261 | FD2: 4618385 | FE2: 18410500 | FF2: 208 | FG2: 822 | FH2: 1901 | FI2: 9609 | FJ2: 2400 | FK2: 11196 | FL2: 834 | FM2: 3492 | FN2: 1246 | FO2: 5044 | FP2: 325 | FQ2: 1575 | FR2: 369 | FS2: 1758 | FT2: 76 | FU2: 321 | FV2: 144 | FW2: 693 | FX2: 260 | FY2: 1124 | FZ2: 260 | GA2: 1124 | GB2: 260 | GC2: 1124 | GD2: 11384

Sheet ETA9090
Q1: ="Version: "&MAX(Version!A:A) -> Version: 2
A2: ByState | B2: 2 | Q2: Data as of 3/19/2015
H3: ="Report Quarter: "&R3 -> Report Quarter: 20141231 | R3: 20141231
D4: 01 - CareerSource Escarosa | H4: ="State: "&R4 -> State: FL | R4: FL
D5: 02 - CareerSource Okaloosa Walton | H5: =IF(A2="ByWIB","WIB: "&A3,"") -> 
D6: 03 - CareerSource Chipola
D7: 04 - CareerSource Gulf Coast | H7: Quarterly Report Form - ETA 9090
D8: 05 - CareerSource Capital Region | H8: Performance Items | K8: Program Group | N8: Current Quarter (most recent) | P8: Cumulative 4-Quarter Reporting Period
D9: 06 - CareerSource North Florida | N9: Value | O9: Numerator | P9: Value | Q9: Numerator
D10: 07 - CareerSource Florida Crown | O10: Denominator | Q10: Denominator
D11: 08 - CareerSource Northeast Florida | H11: Total Participants | K11: Total Adult Participants | N11: =IF($B$2="","",INDIRECT(ADDRESS($B$2,'Map9090'!P10,,,$A$2))) -> 27185 | P11: =IF($B$2="","",INDIRECT(ADDRESS($B$2,'Map9090'!R10,,,$A$2))) -> 43310
D12: 09 - CareerSource North Central | K12: Total Adults (self-service only) | N12: =IF($B$2="","",INDIRECT(ADDRESS($B$2,'Map9090'!P11,,,$A$2))) -> 1 | P12: =IF($B$2="","",INDIRECT(ADDRESS($B$2,'Map9090'!R11,,,$A$2))) -> 1
D13: 10 - CareerSource Citrus Levy Marion | K13: WIA Adults (staff assisted) | N13: =IF($B$2="","",INDIRECT(ADDRESS($B$2,'Map9090'!P12,,,$A$2))) -> 18735 | P13: =IF($B$2="","",INDIRECT(ADDRESS($B$2,'Map9090'!R12,,,$A$2))) -> 29435
D14: 11 - CareerSource Flagler Volusia | K14: WIA Dislocated Workers | N14: =IF($B$2="","",INDIRECT(ADDRESS($B$2,'Map9090'!P13,,,$A$2))) -> 8313 | P14: =IF($B$2="","",INDIRECT(ADDRESS($B$2,'Map9090'!R13,,,$A$2))) -> 13178
D15: 12 - CareerSource Central Florida | K15: Nat'l Emergency Grant | N15: =IF($B$2="","",INDIRECT(ADDRESS($B$2,'Map9090'!P14,,,$A$2))) -> 771 | P15: =IF($B$2="","",INDIRECT(ADDRESS($B$2,'Map9090'!R14,,,$A$2))) -> 1784
D16: 13 - CareerSource Brevard | K16: Total Veterans | N16: =IF($B$2="","",INDIRECT(ADDRESS($B$2,'Map9090'!P15,,,$A$2))) -> 2067 | P16: =IF($B$2="","",INDIRECT(ADDRESS($B$2,'Map9090'!R15,,,$A$2))) -> 3284
D17: 14 - CareerSource Pinellas | K17: Post 9/11 Era Veterans | N17: =IF($B$2="","",INDIRECT(ADDRESS($B$2,'Map9090'!P16,,,$A$2))) -> 559 | P17: =IF($B$2="","",INDIRECT(ADDRESS($B$2,'Map9090'!R16,,,$A$2))) -> 831
D18: 15 - CareerSource Tampa Bay | K18: Post 9/11 Era Veterans Receiving Intensive Svcs. | N18: =IF($B$2="","",INDIRECT(ADDRESS($B$2,'Map9090'!P17,,,$A$2))) -> 423 | P18: =IF($B$2="","",INDIRECT(ADDRESS($B$2,'Map9090'!R17,,,$A$2))) -> 718
D19: 16 - CareerSource Pasco Hernando | K19: TAP Workshop Veteran | N19: =IF($B$2="","",INDIRECT(ADDRESS($B$2,'Map9090'!P18,,,$A$2))) -> 41 | P19: =IF($B$2="","",INDIRECT(ADDRESS($B$2,'Map9090'!R18,,,$A$2))) -> 54
D20: 17 - CareerSource Polk | K20: Received Training Services | N20: =IF($B$2="","",INDIRECT(ADDRESS($B$2,'Map9090'!P19,,,$A$2))) -> 12197 | P20: =IF($B$2="","",INDIRECT(ADDRESS($B$2,'Map9090'!R19,,,$A$2))) -> 23873
D21: 18 - CareerSource Suncoast | K21: WIA Adults | N21: =IF($B$2="","",INDIRECT(ADDRESS($B$2,'Map9090'!P20,,,$A$2))) -> 9019 | P21: =IF($B$2="","",INDIRECT(ADDRESS($B$2,'Map9090'!R20,,,$A$2))) -> 17577
D22: 19 - CareerSource Heartland | K22: WIA Dislocated Workers | N22: =IF($B$2="","",INDIRECT(ADDRESS($B$2,'Map9090'!P21,,,$A$2))) -> 3160 | P22: =IF($B$2="","",INDIRECT(ADDRESS($B$2,'Map9090'!R21,,,$A$2))) -> 6202
D23: 20 - CareerSource Research Coast | K23: Nat'l Emergency Grant | N23: =IF($B$2="","",INDIRECT(ADDRESS($B$2,'Map9090'!P22,,,$A$2))) -> 281 | P23: =IF($B$2="","",INDIRECT(ADDRESS($B$2,'Map9090'!R22,,,$A$2))) -> 664
D24: 21 - CareerSource Palm Beach County | K24: Total Youth (14 - 21) Participants | N24: =IF($B$2="","",INDIRECT(ADDRESS($B$2,'Map9090'!P23,,,$A$2))) -> 11613 | P24: =IF($B$2="","",INDIRECT(ADDRESS($B$2,'Map9090'!R23,,,$A$2))) -> 15371
D25: 22 - CareerSource Broward | K25: Younger Youth (14 - 18) | N25: =IF($B$2="","",INDIRECT(ADDRESS($B$2,'Map9090'!P24,,,$A$2))) -> 7652 | P25: =IF($B$2="","",INDIRECT(ADDRESS($B$2,'Map9090'!R24,,,$A$2))) -> 9790
D26: 23 - CareerSource South Florida | K26: Older Youth (19 - 21) | N26: =IF($B$2="","",INDIRECT(ADDRESS($B$2,'Map9090'!P25,,,$A$2))) -> 3961 | P26: =IF($B$2="","",INDIRECT(ADDRESS($B$2,'Map9090'!R25,,,$A$2))) -> 5581
D27: 24 - CareerSource Southwest Florida | K27: Out-of-School Youth | N27: =IF($B$2="","",INDIRECT(ADDRESS($B$2,'Map9090'!P26,,,$A$2))) -> 5718 | P27: =IF($B$2="","",INDIRECT(ADDRESS($B$2,'Map9090'!R26,,,$A$2))) -> 7879
D28: National Emergency Grant - Florida | K28: In-School Youth | N28: =IF($B$2="","",INDIRECT(ADDRESS($B$2,'Map9090'!P27,,,$A$2))) -> 5894 | P28: =IF($B$2="","",INDIRECT(ADDRESS($B$2,'Map9090'!R27,,,$A$2))) -> 7490
D29: Rapid Response - Florida | H29: Total Exiters | K29: Total Adult Exiters | N29: =IF($B$2="","",INDIRECT(ADDRESS($B$2,'Map9090'!P28,,,$A$2))) -> 3929 | P29: =IF($B$2="","",INDIRECT(ADDRESS($B$2,'Map9090'!R28,,,$A$2))) -> 20777
D30: Statewide Program - Florida | K30: Total Adults (self-services only) | N30: =IF($B$2="","",INDIRECT(ADDRESS($B$2,'Map9090'!P29,,,$A$2))) -> 0 | P30: =IF($B$2="","",INDIRECT(ADDRESS($B$2,'Map9090'!R29,,,$A$2))) -> 0
K31: WIA Adults | N31: =IF($B$2="","",INDIRECT(ADDRESS($B$2,'Map9090'!P30,,,$A$2))) -> 2380 | P31: =IF($B$2="","",INDIRECT(ADDRESS($B$2,'Map9090'!R30,,,$A$2))) -> 13661
K32: WIA Dislocated Workers | N32: =IF($B$2="","",INDIRECT(ADDRESS($B$2,'Map9090'!P31,,,$A$2))) -> 1362 | P32: =IF($B$2="","",INDIRECT(ADDRESS($B$2,'Map9090'!R31,,,$A$2))) -> 6303
K33: Nat'l Emergency Grant | N33: =IF($B$2="","",INDIRECT(ADDRESS($B$2,'Map9090'!P32,,,$A$2))) -> 286 | P33: =IF($B$2="","",INDIRECT(ADDRESS($B$2,'Map9090'!R32,,,$A$2))) -> 1407
K34: Total Youth (14 - 21) Exiters | N34: =IF($B$2="","",INDIRECT(ADDRESS($B$2,'Map9090'!P33,,,$A$2))) -> 1182 | P34: =IF($B$2="","",INDIRECT(ADDRESS($B$2,'Map9090'!R33,,,$A$2))) -> 4882
K35: Younger Youth (14 - 18) | N35: =IF($B$2="","",INDIRECT(ADDRESS($B$2,'Map9090'!P34,,,$A$2))) -> 726 | P35: =IF($B$2="","",INDIRECT(ADDRESS($B$2,'Map9090'!R34,,,$A$2))) -> 2758
K36: Older Youth (19 - 21) | N36: =IF($B$2="","",INDIRECT(ADDRESS($B$2,'Map9090'!P35,,,$A$2))) -> 456 | P36: =IF($B$2="","",INDIRECT(ADDRESS($B$2,'Map9090'!R35,,,$A$2))) -> 2124
K37: Out-of-School Youth | N37: =IF($B$2="","",INDIRECT(ADDRESS($B$2,'Map9090'!P36,,,$A$2))) -> 588 | P37: =IF($B$2="","",INDIRECT(ADDRESS($B$2,'Map9090'!R36,,,$A$2))) -> 2875
K38: In-School Youth | N38: =IF($B$2="","",INDIRECT(ADDRESS($B$2,'Map9090'!P37,,,$A$2))) -> 594 | P38: =IF($B$2="","",INDIRECT(ADDRESS($B$2,'Map9090'!R37,,,$A$2))) -> 2006
K39: Received Training Services | N39: =IF($B$2="","",INDIRECT(ADDRESS($B$2,'Map9090'!P38,,,$A$2))) -> 3010 | P39: =IF($B$2="","",INDIRECT(ADDRESS($B$2,'Map9090'!R38,,,$A$2))) -> 16490
K40: WIA Adults | N40: =IF($B$2="","",INDIRECT(ADDRESS($B$2,'Map9090'!P39,,,$A$2))) -> 1929 | P40: =IF($B$2="","",INDIRECT(ADDRESS($B$2,'Map9090'!R39,,,$A$2))) -> 11408
K41: WIA Dislocated Workers | N41: =IF($B$2="","",INDIRECT(ADDRESS($B$2,'Map9090'!P40,,,$A$2))) -> 1047 | P41: =IF($B$2="","",INDIRECT(ADDRESS($B$2,'Map9090'!R40,,,$A$2))) -> 4977
K42: Nat'l Emergency Grant | N42: =IF($B$2="","",INDIRECT(ADDRESS($B$2,'Map9090'!P41,,,$A$2))) -> 113 | P42: =IF($B$2="","",INDIRECT(ADDRESS($B$2,'Map9090'!R41,,,$A$2))) -> 584
H43: Performance Items | K43: Program Group | N43: Current Quarter (most recent) | P43: Cumulative 4-Quarter Reporting Period
N44: Value | O44: Numerator | P44: Value | Q44: Numerator
O45: Denominator | Q45: Denominator
H46: Placement in Employment or Education | K46: WIA Youth (14 - 21) | N46: =IF(OR(O47=0,O47=""),"",O46/O47) -> 0.7524475524 | O46: =IF($B$2="","",INDIRECT(ADDRESS($B$2,'Map9090'!Q45,,,$A$2))) -> 538 | P46: =IF(OR(Q47=0,Q47=""),"",Q46/Q47) -> 0.7068300431 | Q46: =IF($B$2="","",INDIRECT(ADDRESS($B$2,'Map9090'!S45,,,$A$2))) -> 3115
O47: =IF($B$2="","",INDIRECT(ADDRESS($B$2,'Map9090'!Q46,,,$A$2))) -> 715 | Q47: =IF($B$2="","",INDIRECT(ADDRESS($B$2,'Map9090'!S46,,,$A$2))) -> 4407
H48: Attainment of Degree or Certificate | K48: WIA Youth (14 - 21) | N48: =IF(OR(O49=0,O49=""),"",O48/O49) -> 0.7556142668 | O48: =IF($B$2="","",INDIRECT(ADDRESS($B$2,'Map9090'!Q47,,,$A$2))) -> 572 | P48: =IF(OR(Q49=0,Q49=""),"",Q48/Q49) -> 0.7583939892 | Q48: =IF($B$2="","",INDIRECT(ADDRESS($B$2,'Map9090'!S47,,,$A$2))) -> 3230
O49: =IF($B$2="","",INDIRECT(ADDRESS($B$2,'Map9090'!Q48,,,$A$2))) -> 757 | Q49: =IF($B$2="","",INDIRECT(ADDRESS($B$2,'Map9090'!S48,,,$A$2))) -> 4259
H50: Literacy and Numeracy Gains | K50: WIA Youth (14 - 21) | N50: =IF(OR(O51=0,O51=""),"",O50/O51) -> 0.5470967742 | O50: =IF($B$2="","",INDIRECT(ADDRESS($B$2,'Map9090'!Q49,,,$A$2))) -> 424 | P50: =IF(OR(Q51=0,Q51=""),"",Q50/Q51) -> 0.5485421339 | Q50: =IF($B$2="","",INDIRECT(ADDRESS($B$2,'Map9090'!S49,,,$A$2))) -> 1712
O51: =IF($B$2="","",INDIRECT(ADDRESS($B$2,'Map9090'!Q50,,,$A$2))) -> 775 | Q51: =IF($B$2="","",INDIRECT(ADDRESS($B$2,'Map9090'!S50,,,$A$2))) -> 3121
H52: Youth Diploma or Equivalent Rate | K52: WIA Younger Youth (14-18) | N52: =IF(OR(O53=0,O53=""),"",O52/O53) -> 0.7862453532 | O52: =IF($B$2="","",INDIRECT(ADDRESS($B$2,'Map9090'!Q51,,,$A$2))) -> 423 | P52: =IF(OR(Q53=0,Q53=""),"",Q52/Q53) -> 0.7211394303 | Q52: =IF($B$2="","",INDIRECT(ADDRESS($B$2,'Map9090'!S51,,,$A$2))) -> 1443
O53: =IF($B$2="","",INDIRECT(ADDRESS($B$2,'Map9090'!Q52,,,$A$2))) -> 538 | Q53: =IF($B$2="","",INDIRECT(ADDRESS($B$2,'Map9090'!S52,,,$A$2))) -> 2001
H54: Skill Attainment Rate | K54: WIA Younger Youth (14-18) | N54: =IF(OR(O55=0,O55=""),"",O54/O55) -> 0.7853535354 | O54: =IF($B$2="","",INDIRECT(ADDRESS($B$2,'Map9090'!Q53,,,$A$2))) -> 1555 | P54: =IF(OR(Q55=0,Q55=""),"",Q54/Q55) -> 0.8262552301 | Q54: =IF($B$2="","",INDIRECT(ADDRESS($B$2,'Map9090'!S53,,,$A$2))) -> 7899
O55: =IF($B$2="","",INDIRECT(ADDRESS($B$2,'Map9090'!Q54,,,$A$2))) -> 1980 | Q55: =IF($B$2="","",INDIRECT(ADDRESS($B$2,'Map9090'!S54,,,$A$2))) -> 9560
H56: Entered Employment Rates | K56: Adults | N56: =IF(OR(O57=0,O57=""),"",O56/O57) -> 0.8755215577 | O56: =IF($B$2="","",INDIRECT(ADDRESS($B$2,'Map9090'!Q55,,,$A$2))) -> 1259 | P56: =IF(OR(Q57=0,Q57=""),"",Q56/Q57) -> 0.7928101428 | Q56: =IF($B$2="","",INDIRECT(ADDRESS($B$2,'Map9090'!S55,,,$A$2))) -> 4940
O57: =IF($B$2="","",INDIRECT(ADDRESS($B$2,'Map9090'!Q56,,,$A$2))) -> 1438 | Q57: =IF($B$2="","",INDIRECT(ADDRESS($B$2,'Map9090'!S56,,,$A$2))) -> 6231
K58: Dislocated Workers | N58: =IF(OR(O59=0,O59=""),"",O58/O59) -> 0.8850952068 | O58: =IF($B$2="","",INDIRECT(ADDRESS($B$2,'Map9090'!Q57,,,$A$2))) -> 1348 | P58: =IF(OR(Q59=0,Q59=""),"",Q58/Q59) -> 0.8497146481 | Q58: =IF($B$2="","",INDIRECT(ADDRESS($B$2,'Map9090'!S57,,,$A$2))) -> 5360
O59: =IF($B$2="","",INDIRECT(ADDRESS($B$2,'Map9090'!Q58,,,$A$2))) -> 1523 | Q59: =IF($B$2="","",INDIRECT(ADDRESS($B$2,'Map9090'!S58,,,$A$2))) -> 6308
K60: Older Youth (19-21) | N60: =IF(OR(O61=0,O61=""),"",O60/O61) -> 0.7591036415 | O60: =IF($B$2="","",INDIRECT(ADDRESS($B$2,'Map9090'!Q59,,,$A$2))) -> 271 | P60: =IF(OR(Q61=0,Q61=""),"",Q60/Q61) -> 0.7265668331 | Q60: =IF($B$2="","",INDIRECT(ADDRESS($B$2,'Map9090'!S59,,,$A$2))) -> 1310
O61: =IF($B$2="","",INDIRECT(ADDRESS($B$2,'Map9090'!Q60,,,$A$2))) -> 357 | Q61: =IF($B$2="","",INDIRECT(ADDRESS($B$2,'Map9090'!S60,,,$A$2))) -> 1803
K62: Veterans | N62: =IF(OR(O63=0,O63=""),"",O62/O63) -> 0.8593155894 | O62: =IF($B$2="","",INDIRECT(ADDRESS($B$2,'Map9090'!Q61,,,$A$2))) -> 226 | P62: =IF(OR(Q63=0,Q63=""),"",Q62/Q63) -> 0.7833333333 | Q62: =IF($B$2="","",INDIRECT(ADDRESS($B$2,'Map9090'!S61,,,$A$2))) -> 940
O63: =IF($B$2="","",INDIRECT(ADDRESS($B$2,'Map9090'!Q62,,,$A$2))) -> 263 | Q63: =IF($B$2="","",INDIRECT(ADDRESS($B$2,'Map9090'!S62,,,$A$2))) -> 1200
K64: Nat'l Emergency Grant | N64: =IF(OR(O65=0,O65=""),"",O64/O65) -> 0.8202614379 | O64: =IF($B$2="","",INDIRECT(ADDRESS($B$2,'Map9090'!Q63,,,$A$2))) -> 251 | P64: =IF(OR(Q65=0,Q65=""),"",Q64/Q65) -> 0.6545994065 | Q64: =IF($B$2="","",INDIRECT(ADDRESS($B$2,'Map9090'!S63,,,$A$2))) -> 1103
O65: =IF($B$2="","",INDIRECT(ADDRESS($B$2,'Map9090'!Q64,,,$A$2))) -> 306 | Q65: =IF($B$2="","",INDIRECT(ADDRESS($B$2,'Map9090'!S64,,,$A$2))) -> 1685
H66: Employment and Credential Rates (Adults/Dislocated Workers/Older Youth) | K66: Adults | N66: =IF(OR(O67=0,O67=""),"",O66/O67) -> 0.7429048414 | O66: =IF($B$2="","",INDIRECT(ADDRESS($B$2,'Map9090'!Q65,,,$A$2))) -> 1780 | P66: =IF(OR(Q67=0,Q67=""),"",Q66/Q67) -> 0.7979807005 | Q66: =IF($B$2="","",INDIRECT(ADDRESS($B$2,'Map9090'!S65,,,$A$2))) -> 8931
O67: =IF($B$2="","",INDIRECT(ADDRESS($B$2,'Map9090'!Q66,,,$A$2))) -> 2396 | Q67: =IF($B$2="","",INDIRECT(ADDRESS($B$2,'Map9090'!S66,,,$A$2))) -> 11192
K68: Dislocated Workers | N68: =IF(OR(O69=0,O69=""),"",O68/O69) -> 0.5947030498 | O68: =IF($B$2="","",INDIRECT(ADDRESS($B$2,'Map9090'!Q67,,,$A$2))) -> 741 | P68: =IF(OR(Q69=0,Q69=""),"",Q68/Q69) -> 0.6015067407 | Q68: =IF($B$2="","",INDIRECT(ADDRESS($B$2,'Map9090'!S67,,,$A$2))) -> 3034
O69: =IF($B$2="","",INDIRECT(ADDRESS($B$2,'Map9090'!Q68,,,$A$2))) -> 1246 | Q69: =IF($B$2="","",INDIRECT(ADDRESS($B$2,'Map9090'!S68,,,$A$2))) -> 5044
K70: Older Youth (19-21) | N70: =IF(OR(O71=0,O71=""),"",O70/O71) -> 0.4885321101 | O70: =IF($B$2="","",INDIRECT(ADDRESS($B$2,'Map9090'!Q69,,,$A$2))) -> 213 | P70: =IF(OR(Q71=0,Q71=""),"",Q70/Q71) -> 0.4318507891 | Q70: =IF($B$2="","",INDIRECT(ADDRESS($B$2,'Map9090'!S69,,,$A$2))) -> 903
O71: =IF($B$2="","",INDIRECT(ADDRESS($B$2,'Map9090'!Q70,,,$A$2))) -> 436 | Q71: =IF($B$2="","",INDIRECT(ADDRESS($B$2,'Map9090'!S70,,,$A$2))) -> 2091
H72: Retention Rates | K72: Adults | N72: =IF(OR(O73=0,O73=""),"",O72/O73) -> 0.9127781766 | O72: =IF($B$2="","",INDIRECT(ADDRESS($B$2,'Map9090'!Q71,,,$A$2))) -> 2543 | P72: =IF(OR(Q73=0,Q73=""),"",Q72/Q73) -> 0.9104940727 | Q72: =IF($B$2="","",INDIRECT(ADDRESS($B$2,'Map9090'!S71,,,$A$2))) -> 11444
O73: =IF($B$2="","",INDIRECT(ADDRESS($B$2,'Map9090'!Q72,,,$A$2))) -> 2786 | Q73: =IF($B$2="","",INDIRECT(ADDRESS($B$2,'Map9090'!S72,,,$A$2))) -> 12569
K74: Dislocated Workers | N74: =IF(OR(O75=0,O75=""),"",O74/O75) -> 0.9002169197 | O74: =IF($B$2="","",INDIRECT(ADDRESS($B$2,'Map9090'!Q73,,,$A$2))) -> 1245 | P74: =IF(OR(Q75=0,Q75=""),"",Q74/Q75) -> 0.898157129 | Q74: =IF($B$2="","",INDIRECT(ADDRESS($B$2,'Map9090'!S73,,,$A$2))) -> 5556
O75: =IF($B$2="","",INDIRECT(ADDRESS($B$2,'Map9090'!Q74,,,$A$2))) -> 1383 | Q75: =IF($B$2="","",INDIRECT(ADDRESS($B$2,'Map9090'!S74,,,$A$2))) -> 6186
K76: Veterans | N76: =IF(OR(O77=0,O77=""),"",O76/O77) -> 0.8971061093 | O76: =IF($B$2="","",INDIRECT(ADDRESS($B$2,'Map9090'!Q75,,,$A$2))) -> 279 | P76: =IF(OR(Q77=0,Q77=""),"",Q76/Q77) -> 0.8973765432 | Q76: =IF($B$2="","",INDIRECT(ADDRESS($B$2,'Map9090'!S75,,,$A$2))) -> 1163
O77: =IF($B$2="","",INDIRECT(ADDRESS($B$2,'Map9090'!Q76,,,$A$2))) -> 311 | Q77: =IF($B$2="","",INDIRECT(ADDRESS($B$2,'Map9090'!S76,,,$A$2))) -> 1296
K78: Older Youth (19-21) | N78: =IF(OR(O79=0,O79=""),"",O78/O79) -> 0.8403361345 | O78: =IF($B$2="","",INDIRECT(ADDRESS($B$2,'Map9090'!Q77,,,$A$2))) -> 300 | P78: =IF(OR(Q79=0,Q79=""),"",Q78/Q79) -> 0.8470507545 | Q78: =IF($B$2="","",INDIRECT(ADDRESS($B$2,'Map9090'!S77,,,$A$2))) -> 1235
O79: =IF($B$2="","",INDIRECT(ADDRESS($B$2,'Map9090'!Q78,,,$A$2))) -> 357 | Q79: =IF($B$2="","",INDIRECT(ADDRESS($B$2,'Map9090'!S78,,,$A$2))) -> 1458
K80: Younger Youth (14-18) | N80: =IF(OR(O81=0,O81=""),"",O80/O81) -> 0.8139240506 | O80: =IF($B$2="","",INDIRECT(ADDRESS($B$2,'Map9090'!Q79,,,$A$2))) -> 643 | P80: =IF(OR(Q81=0,Q81=""),"",Q80/Q81) -> 0.7333894029 | Q80: =IF($B$2="","",INDIRECT(ADDRESS($B$2,'Map9090'!S79,,,$A$2))) -> 1744
O81: =IF($B$2="","",INDIRECT(ADDRESS($B$2,'Map9090'!Q80,,,$A$2))) -> 790 | Q81: =IF($B$2="","",INDIRECT(ADDRESS($B$2,'Map9090'!S80,,,$A$2))) -> 2378
K82: Nat'l Emergency Grant | N82: =IF(OR(O83=0,O83=""),"",O82/O83) -> 0.8764044944 | O82: =IF($B$2="","",INDIRECT(ADDRESS($B$2,'Map9090'!Q81,,,$A$2))) -> 234 | P82: =IF(OR(Q83=0,Q83=""),"",Q82/Q83) -> 0.896780303 | Q82: =IF($B$2="","",INDIRECT(ADDRESS($B$2,'Map9090'!S81,,,$A$2))) -> 947
O83: =IF($B$2="","",INDIRECT(ADDRESS($B$2,'Map9090'!Q82,,,$A$2))) -> 267 | Q83: =IF($B$2="","",INDIRECT(ADDRESS($B$2,'Map9090'!S82,,,$A$2))) -> 1056
H84: Six-Months Average Earnings | K84: Adults | N84: =IF(OR(O85=0,O85=""),"",O84/O85) -> 18888.15767 | O84: =IF($B$2="","",INDIRECT(ADDRESS($B$2,'Map9090'!Q83,,,$A$2))) -> 45161585 | P84: =IF(OR(Q85=0,Q85=""),"",Q84/Q85) -> 18250.68482 | Q84: =IF($B$2="","",INDIRECT(ADDRESS($B$2,'Map9090'!S83,,,$A$2))) -> 195665592
O85: =IF($B$2="","",INDIRECT(ADDRESS($B$2,'Map9090'!Q84,,,$A$2))) -> 2391 | Q85: =IF($B$2="","",INDIRECT(ADDRESS($B$2,'Map9090'!S84,,,$A$2))) -> 10721
K86: Dislocated Workers | N86: =IF(OR(O87=0,O87=""),"",O86/O87) -> 16463.89618 | O86: =IF($B$2="","",INDIRECT(ADDRESS($B$2,'Map9090'!Q85,,,$A$2))) -> 18554811 | P86: =IF(OR(Q87=0,Q87=""),"",Q86/Q87) -> 15864.96246 | Q86: =IF($B$2="","",INDIRECT(ADDRESS($B$2,'Map9090'!S85,,,$A$2))) -> 78610889
O87: =IF($B$2="","",INDIRECT(ADDRESS($B$2,'Map9090'!Q86,,,$A$2))) -> 1127 | Q87: =IF($B$2="","",INDIRECT(ADDRESS($B$2,'Map9090'!S86,,,$A$2))) -> 4955
K88: Veterans | N88: =IF(OR(O89=0,O89=""),"",O88/O89) -> 19194.38889 | O88: =IF($B$2="","",INDIRECT(ADDRESS($B$2,'Map9090'!Q87,,,$A$2))) -> 4836986 | P88: =IF(OR(Q89=0,Q89=""),"",Q88/Q89) -> 18695.57977 | Q88: =IF($B$2="","",INDIRECT(ADDRESS($B$2,'Map9090'!S87,,,$A$2))) -> 19219056
O89: =IF($B$2="","",INDIRECT(ADDRESS($B$2,'Map9090'!Q88,,,$A$2))) -> 252 | Q89: =IF($B$2="","",INDIRECT(ADDRESS($B$2,'Map9090'!S88,,,$A$2))) -> 1028
K90: Older Youth (19-21) (Earnings Change) | N90: =IF(OR(O91=0,O91=""),"",O90/O91) -> 4534.416938 | O90: =IF($B$2="","",INDIRECT(ADDRESS($B$2,'Map9090'!Q89,,,$A$2))) -> 1392066 | P90: =IF(OR(Q91=0,Q91=""),"",Q90/Q91) -> 4605.472641 | Q90: =IF($B$2="","",INDIRECT(ADDRESS($B$2,'Map9090'!S89,,,$A$2))) -> 5807501
O91: =IF($B$2="","",INDIRECT(ADDRESS($B$2,'Map9090'!Q90,,,$A$2))) -> 307 | Q91: =IF($B$2="","",INDIRECT(ADDRESS($B$2,'Map9090'!S90,,,$A$2))) -> 1261
K92: Nat'l Emergency Grant | N92: =IF(OR(O93=0,O93=""),"",O92/O93) -> 22203.77404 | O92: =IF($B$2="","",INDIRECT(ADDRESS($B$2,'Map9090'!Q91,,,$A$2))) -> 4618385 | P92: =IF(OR(Q93=0,Q93=""),"",Q92/Q93) -> 22397.20195 | Q92: =IF($B$2="","",INDIRECT(ADDRESS($B$2,'Map9090'!S91,,,$A$2))) -> 18410500
O93: =IF($B$2="","",INDIRECT(ADDRESS($B$2,'Map9090'!Q92,,,$A$2))) -> 208 | Q93: =IF($B$2="","",INDIRECT(ADDRESS($B$2,'Map9090'!S92,,,$A$2))) -> 822
H94: Credential Attainment | K94: Adults | N94: =IF(OR(O95=0,O95=""),"",O94/O95) -> 0.7920833333 | O94: =IF($B$2="","",INDIRECT(ADDRESS($B$2,'Map9090'!Q93,,,$A$2))) -> 1901 | P94: =IF(OR(Q95=0,Q95=""),"",Q94/Q95) -> 0.8582529475 | Q94: =IF($B$2="","",INDIRECT(ADDRESS($B$2,'Map9090'!S93,,,$A$2))) -> 9609
O95: =IF($B$2="","",INDIRECT(ADDRESS($B$2,'Map9090'!Q94,,,$A$2))) -> 2400 | Q95: =IF($B$2="","",INDIRECT(ADDRESS($B$2,'Map9090'!S94,,,$A$2))) -> 11196
K96: Dislocated Workers | N96: =IF(OR(O97=0,O97=""),"",O96/O97) -> 0.6693418941 | O96: =IF($B$2="","",INDIRECT(ADDRESS($B$2,'Map9090'!Q95,,,$A$2))) -> 834 | P96: =IF(OR(Q97=0,Q97=""),"",Q96/Q97) -> 0.6923076923 | Q96: =IF($B$2="","",INDIRECT(ADDRESS($B$2,'Map9090'!S95,,,$A$2))) -> 3492
O97: =IF($B$2="","",INDIRECT(ADDRESS($B$2,'Map9090'!Q96,,,$A$2))) -> 1246 | Q97: =IF($B$2="","",INDIRECT(ADDRESS($B$2,'Map9090'!S96,,,$A$2))) -> 5044
K98: Youth (14-21) | N98: =IF(OR(O99=0,O99=""),"",O98/O99) -> 0.8807588076 | O98: =IF($B$2="","",INDIRECT(ADDRESS($B$2,'Map9090'!Q97,,,$A$2))) -> 325 | P98: =IF(OR(Q99=0,Q99=""),"",Q98/Q99) -> 0.8959044369 | Q98: =IF($B$2="","",INDIRECT(ADDRESS($B$2,'Map9090'!S97,,,$A$2))) -> 1575
O99: =IF($B$2="","",INDIRECT(ADDRESS($B$2,'Map9090'!Q98,,,$A$2))) -> 369 | Q99: =IF($B$2="","",INDIRECT(ADDRESS($B$2,'Map9090'!S98,,,$A$2))) -> 1758
K100: Nat'l Emergency Grant | N100: =IF(OR(O101=0,O101=""),"",O100/O101) -> 0.5277777778 | O100: =IF($B$2="","",INDIRECT(ADDRESS($B$2,'Map9090'!Q99,,,$A$2))) -> 76 | P100: =IF(OR(Q101=0,Q101=""),"",Q100/Q101) -> 0.4632034632 | Q100: =IF($B$2="","",INDIRECT(ADDRESS($B$2,'Map9090'!S99,,,$A$2))) -> 321
O101: =IF($B$2="","",INDIRECT(ADDRESS($B$2,'Map9090'!Q100,,,$A$2))) -> 144 | Q101: =IF($B$2="","",INDIRECT(ADDRESS($B$2,'Map9090'!S100,,,$A$2))) -> 693
H102: Veteran Priority of Service | K102: Measure | N102: Percent Served | O102: Total | P102: Percent Served | Q102: Total
K104: Covered Entrants Who Reached the End of the Entry Period | O104: =IF($B$2="","",INDIRECT(ADDRESS($B$2,'Map9090'!Q103,,,$A$2))) -> 260 | Q104: =IF($B$2="","",INDIRECT(ADDRESS($B$2,'Map9090'!S103,,,$A$2))) -> 1124
K106: Covered Entrants Who Received a Service During the Entry Period | N106: =IF(OR(O104="",O104=0),"",O106/O104) -> 1 | O106: =IF($B$2="","",INDIRECT(ADDRESS($B$2,'Map9090'!Q105,,,$A$2))) -> 260 | P106: =IF(OR(Q104="",Q104=0),"",Q106/Q104) -> 1 | Q106: =IF($B$2="","",INDIRECT(ADDRESS($B$2,'Map9090'!S105,,,$A$2))) -> 1124
K108: Covered Entrants Who Received a Staff-Assisted Service During the Entry Period | N108: =IF(OR(O104="",O104=0),"",O108/O104) -> 1 | O108: =IF($B$2="","",INDIRECT(ADDRESS($B$2,'Map9090'!Q107,,,$A$2))) -> 260 | P108: =IF(OR(Q104="",Q104=0),"",Q108/Q104) -> 1 | Q108: =IF($B$2="","",INDIRECT(ADDRESS($B$2,'Map9090'!S107,,,$A$2))) -> 1124
